Body Name,Body,Service Level,Expense Type,Expense Code,Narrative,Date,Transaction Number,Amount,Capital and Revenue,Supplier Name,Supplier ID
South Ribble Council,http://statistics.data.gov.uk/doc/local-authority/30UN,Area 2 - Waste Transport/Eastern & Central Teams,Materials General,4040,1 brake caliper VO65 KRE JFC13442,01/11/2019,0000450559,493.75,Revenue,AA UK CV t/a Hydrair Truck & Trailer,132664
South Ribble Council,http://statistics.data.gov.uk/doc/local-authority/30UN,Area 2 - Waste Transport/Eastern & Central Teams,Materials General,4040,to be cancelled against credit,01/11/2019,0000450578,483.32,Revenue,AA UK CV t/a Hydrair Truck & Trailer,132664
South Ribble Council,http://statistics.data.gov.uk/doc/local-authority/30UN,Housing,Cap Grant- Improve Grants,C570,DFG WORKS TO BATHROOM AT ADDRESS REDACTED. CLIENT TO PAY THE DIFFERENCE TO ABBI OF 3321.41 COST 12878.59,29/11/2019,0000451311,"10,600.00",Revenue,ABBI PROPERTY SERVICES LTD,131357
South Ribble Council,http://statistics.data.gov.uk/doc/local-authority/30UN,Democratic Services,Other Expenses,463A,"PA SYSTEM TO BE SETUP BY 10 AM ON SUNDAY 10 NOV, DISMANTLED AFTER PARADE ENTERS ST ANDREW`S CHURCH LEYLAND",15/11/2019,0000450893,385.00,Revenue,ACTIVE AV LTD,131458
South Ribble Council,http://statistics.data.gov.uk/doc/local-authority/30UN,Area 2 - Waste Transport/Eastern & Central Teams,Materials General,4040,1 suction fan AE14 AYG JFC13545,15/11/2019,0000450868,"1,323.88",Revenue,AEBI SCHMIDT UK LTD,00085672
South Ribble Council,http://statistics.data.gov.uk/doc/local-authority/30UN,Area 2 - Waste Transport/Eastern & Central Teams,Materials General,4040,3 X RAM BALL JOINTS AE14AYG JFC 13414,15/11/2019,0000450870,151.14,Revenue,AEBI SCHMIDT UK LTD,00085672
South Ribble Council,http://statistics.data.gov.uk/doc/local-authority/30UN,Area 2 - Waste Transport/Eastern & Central Teams,Materials General,4040,LIFT RAM AE14AYG JFC 13414,15/11/2019,0000450870,143.74,Revenue,AEBI SCHMIDT UK LTD,00085672
South Ribble Council,http://statistics.data.gov.uk/doc/local-authority/30UN,Area 2 - Waste Transport/Eastern & Central Teams,Materials General,4040,4 X BUSHES AE14AYG JFC 13414,15/11/2019,0000450870,12.64,Revenue,AEBI SCHMIDT UK LTD,00085672
South Ribble Council,http://statistics.data.gov.uk/doc/local-authority/30UN,Area 2 - Waste Transport/Eastern & Central Teams,Materials General,4040,REVERSE LAMP AE14AYG JFC 13414,15/11/2019,0000450870,20.36,Revenue,AEBI SCHMIDT UK LTD,00085672
South Ribble Council,http://statistics.data.gov.uk/doc/local-authority/30UN,Area 2 - Waste Transport/Eastern & Central Teams,Materials General,4040,FUEL FILTER SENSOR AE14AYG JFC 13414,15/11/2019,0000450870,36.97,Revenue,AEBI SCHMIDT UK LTD,00085672
South Ribble Council,http://statistics.data.gov.uk/doc/local-authority/30UN,Area 2 - Waste Transport/Eastern & Central Teams,Materials General,4040,2 X TOGGLE RUBBERS AE14AYG JFC 13414,15/11/2019,0000450870,35.48,Revenue,AEBI SCHMIDT UK LTD,00085672
South Ribble Council,http://statistics.data.gov.uk/doc/local-authority/30UN,Area 2 - Waste Transport/Eastern & Central Teams,Materials General,4040,freight,15/11/2019,0000450870,15.00,Revenue,AEBI SCHMIDT UK LTD,00085672
South Ribble Council,http://statistics.data.gov.uk/doc/local-authority/30UN,Healthy Communities,Professional Fees,4510,28hours 45mins of teaching  =  575,01/11/2019,0000450365,575.00,Revenue,Alexandra McKenna,132786
South Ribble Council,http://statistics.data.gov.uk/doc/local-authority/30UN,Revenues Plus,Financial,4811,,06/11/2019,0000450764,959.36,Revenue,ALLPAY LTD,00122276
South Ribble Council,http://statistics.data.gov.uk/doc/local-authority/30UN,Revenues Plus,Financial,4811,,06/11/2019,0000450764,118.80,Revenue,ALLPAY LTD,00122276
South Ribble Council,http://statistics.data.gov.uk/doc/local-authority/30UN,Revenues Plus,Financial,4811,,06/11/2019,0000450764,46.00,Revenue,ALLPAY LTD,00122276
South Ribble Council,http://statistics.data.gov.uk/doc/local-authority/30UN,Housing,Cap Grant- Improve Grants,C570,DFG WORKS TO COMPLETE BATHROOM AT ADDRESS REDACTED AS PER QUOTE SUPPLIED OF 4240.90 TOTAL COST 4240.90,20/11/2019,0000450989,"4,240.90",Revenue,APG DOMESTIC SERVICES,00061463
South Ribble Council,http://statistics.data.gov.uk/doc/local-authority/30UN,Housing,Professional Fees,4510,"South Ribble Borough Council Local Housing Needs and Demand Study Total Cost 21,414 To be paid over three invoicing points",06/11/2019,0000450682,"10,707.00",Revenue,arc4 Limited,132965
South Ribble Council,http://statistics.data.gov.uk/doc/local-authority/30UN,Property Services,Rep & Maint Premises,2020,To supply & fit a motor to the roller shutter to the cheese stall at Leyland Market as per quotation 1555,08/11/2019,0000450778,395.00,Revenue,AVALON DOORS & AWNINGS LTD,131051
South Ribble Council,http://statistics.data.gov.uk/doc/local-authority/30UN,Area 2 - Waste Transport/Eastern & Central Teams,Advertising,4842,"25,000 x Christmas Collection Stickers as per quote 147735",13/11/2019,0000450860,898.00,Revenue,B & D PRINT SERVICES LTD,00015134
South Ribble Council,http://statistics.data.gov.uk/doc/local-authority/30UN,Regeneration,Other Misc,4861,"Printing of 7,000 Christmas What`s On Guides as per quote number 148171 including delivery",22/11/2019,0000451087,428.00,Revenue,B & D PRINT SERVICES LTD,00015134
South Ribble Council,http://statistics.data.gov.uk/doc/local-authority/30UN,Regeneration,Advertising,4848,"7,000 Western Parishes Autumn newsletter, including insertion with the What`s On Guide and including delivery.",22/11/2019,0000451087,511.00,Revenue,B & D PRINT SERVICES LTD,00015134
South Ribble Council,http://statistics.data.gov.uk/doc/local-authority/30UN,HR & Communications,Training Expense-Course Fees,1402,1ST4SPORT - LEVEL 3 AWARD IN ASSESSING VOCATIONAL ACHIEVEMENT FOR NAME REDACTED IN OCT 2019 - OFFICE BASED,20/11/2019,0000450963,350.00,Revenue,BallZone Education C.I.C,132694
South Ribble Council,http://statistics.data.gov.uk/doc/local-authority/30UN,Area 2 - Waste Transport/Eastern & Central Teams,Materials General,4040,SERVICE KIT + 3 BLADES + 30 SCREWS - MX19JMO - JFC13525,13/11/2019,0000450857,373.53,Revenue,BALMERS GM LTD,00016023
South Ribble Council,http://statistics.data.gov.uk/doc/local-authority/30UN,Property Services,Rep & Maint Premises,2020,Please attend Civic Centre and carry out emergency light upgrade to ground floor as requested by NAME REDACTED,20/11/2019,0000450852,"3,799.40",Revenue,BELEC ELECTRICAL LTD,130290
South Ribble Council,http://statistics.data.gov.uk/doc/local-authority/30UN,Healthy Communities,Materials General,4040,5 Mongoose Scoots @ 100 Each 10 Scooter Helmets @ 15 Each TOTAL 650,15/11/2019,0000450913,770.00,Revenue,BILL NICKSON CYCLES,00009496
South Ribble Council,http://statistics.data.gov.uk/doc/local-authority/30UN,Information Services,Peripherals,4245,PS - Consulting fee per day,27/11/2019,0000451107,"1,650.00",Revenue,Blackberry UK Limited,132870
South Ribble Council,http://statistics.data.gov.uk/doc/local-authority/30UN,Neighbourhood Admin & Support,Materials General,4040,HANSON FAST SET POST MIX  20kg PLEASE RING TELEPHONE NUMBER REDACTED BEFORE DELIVERING TO WORDEN PARK,13/11/2019,0000450907,260.40,Revenue,C & W BERRY LTD,00015231
South Ribble Council,http://statistics.data.gov.uk/doc/local-authority/30UN,Property Services,Rep & Maint Premises,2020,"Annual PAT Testing 2019/2020 for South Ribble Borough Council - at Civic Centre, Leyland PR25 1DH",08/11/2019,0000450705,481.65,Revenue,Calbarrie Compliance Services Ltd,132243
South Ribble Council,http://statistics.data.gov.uk/doc/local-authority/30UN,Revenues Plus,Professional Fees,4520,2 days consultancy,01/11/2019,0000450616,"2,600.00",Revenue,CAPITA BUSINESS SERVICES LTD,00122179
South Ribble Council,http://statistics.data.gov.uk/doc/local-authority/30UN,Revenues Plus,Peripherals,4242,DWP LA Data Sharing Programme,22/11/2019,0000451090,"4,702.22",Revenue,CAPITA BUSINESS SERVICES LTD,00122179
South Ribble Council,http://statistics.data.gov.uk/doc/local-authority/30UN,HR & Communications,Recruitment Expenses,1500,ADVERT FOR ENVIRONMENTAL HEALTH OFFICER,08/11/2019,0000450796,750.00,Revenue,CHARTERED INST OF ENVIRONMENTAL HEALTH,00024963
South Ribble Council,http://statistics.data.gov.uk/doc/local-authority/30UN,Housing,Balance Sheet,0030,AFFORDABLE HOUSING COMMUTED SUM GRANT PAYMENT. PAYMENT TWO OF TWO.,15/11/2019,0000450327,"249,832.20",Revenue,Chorley Community Housing  Adactus Housing grp ltd,132509
South Ribble Council,http://statistics.data.gov.uk/doc/local-authority/30UN,Democratic Services,Training Expense-Course Fees,1406,CLLR NAME REDACTED TO ATTEND `INTRODUCTION TO THE KNOWLEDGE AND SKILLS OF THE AUDIT COMMITTEE` 17 OCT 2019,06/11/2019,0000450367,345.00,Revenue,CIPFA BUSINESS LTD,00017187
South Ribble Council,http://statistics.data.gov.uk/doc/local-authority/30UN,Environmental Health,Contributions,4730,Refernet - New Burdens Funding,01/11/2019,0000449863,"5,000.00",Revenue,Citizens Advice Lancashire,00017349
South Ribble Council,http://statistics.data.gov.uk/doc/local-authority/30UN,Environmental Health,Contributions,4730,Refernet - New Burdens Funding,27/11/2019,0000450918,"5,000.00",Revenue,Citizens Advice Lancashire,00017349
South Ribble Council,http://statistics.data.gov.uk/doc/local-authority/30UN,Chief Executive`s Management,Training Expense-Course Fees,1406,Victoria Room. 8 November 2019 9.30am - 3.30pm Labour Group Away Day AM - 7 people Lunch and PM - 23 people Farington Value Package,29/11/2019,0000450911,516.54,Revenue,CLASSIC LODGES,132236
South Ribble Council,http://statistics.data.gov.uk/doc/local-authority/30UN,Information Services,Peripherals,4241,"Code AV28445 55`` TV @ 399.16, and Code ST04044 TV bracket @ 38.51",20/11/2019,0000451027,399.16,Revenue,CPC Re: COMBINED PRECISION COMPONENTS PLC,00017954
South Ribble Council,http://statistics.data.gov.uk/doc/local-authority/30UN,Revenues Plus,Postage,4291,Postage for October to December 2019,01/11/2019,0000450674,626.44,Revenue,CRITIQOM,131053
South Ribble Council,http://statistics.data.gov.uk/doc/local-authority/30UN,Revenues Plus,Postage,4291,Postage for October to December 2019,08/11/2019,0000450810,256.56,Revenue,CRITIQOM,131053
South Ribble Council,http://statistics.data.gov.uk/doc/local-authority/30UN,Revenues Plus,Postage,4291,Postage for October to December 2019,15/11/2019,0000450954,539.51,Revenue,CRITIQOM,131053
South Ribble Council,http://statistics.data.gov.uk/doc/local-authority/30UN,Revenues Plus,Postage,4291,Postage for October to December 2019,27/11/2019,0000451146,536.46,Revenue,CRITIQOM,131053
South Ribble Council,http://statistics.data.gov.uk/doc/local-authority/30UN,Revenues Plus,Postage,4291,Postage for October to December 2019,29/11/2019,0000451233,396.98,Revenue,CRITIQOM,131053
South Ribble Council,http://statistics.data.gov.uk/doc/local-authority/30UN,Housing,Cap Grant- Improve Grants,C570,"DFG WORKS TO BATHROOM AT ADDRESS REDACTED � QUOTE WAS NOT THE LOWEST, CLIENT IS PAYING DIFFERENCE OF 16.94",01/11/2019,0000450659,"4,383.06",Revenue,Croston Plumbing & Heating Ltd,131545
South Ribble Council,http://statistics.data.gov.uk/doc/local-authority/30UN,Housing,Cap Grant- Improve Grants,C570,DFG WORKS TO BATHROOM AT ADDRESS REDACTED AS PER QUOTE SUPPLIED OF 4050.00 TOTAL GRANT COST  4050.00,01/11/2019,0000450678,"4,271.87",Revenue,Croston Plumbing & Heating Ltd,131545
South Ribble Council,http://statistics.data.gov.uk/doc/local-authority/30UN,Legal,Legal,4821,PROFESSIONAL ADVICE RE AN EMPLOYMENT MATTER 1 OCTOBER - 30 OCTOBER 2019,08/11/2019,0000450822,603.00,Revenue,DAC BEACHCROFT LLP,131193
South Ribble Council,http://statistics.data.gov.uk/doc/local-authority/30UN,HR & Communications,Training Expense-Course Fees,1403,DATRIX PROJECT MANAGEMENT QUALIFICATION,27/11/2019,0000450942,"16,560.00",Revenue,DATRIX TRAINING LTD,130256
South Ribble Council,http://statistics.data.gov.uk/doc/local-authority/30UN,Healthy Communities,Advertising,4842,Bikeability training 14th Oct @Lostock Hall Academy 16th Oct @ Little hole and Leyland St Marys 17th Oct @Little Hoole & Leyland St Marys,06/11/2019,0000450750,270.00,Revenue,David Evans,132686
South Ribble Council,http://statistics.data.gov.uk/doc/local-authority/30UN,Housing,Cap Grant- Improve Grants,C570,DFG WORKS TO BATHROOM AT ADDRESS REDACTED  AS PER YOUR QUOTE COST 5152.75,13/11/2019,0000450863,"5,152.75",Revenue,Deakins Plumbing & Heating Ltd,131446
South Ribble Council,http://statistics.data.gov.uk/doc/local-authority/30UN,Area 2 - Waste Transport/Eastern & Central Teams,Materials General,4040,KING PIN SET - DEP102985 - VU11HSZ - JFC13081,15/11/2019,0000449148,797.43,Revenue,DENNIS EAGLE LTD,00019774
South Ribble Council,http://statistics.data.gov.uk/doc/local-authority/30UN,Area 2 - Waste Transport/Eastern & Central Teams,Materials General,4040,2 x SPINDLE NUT - DEP102588 - VU11HSZ - JFC13081,15/11/2019,0000449148,86.39,Revenue,DENNIS EAGLE LTD,00019774
South Ribble Council,http://statistics.data.gov.uk/doc/local-authority/30UN,Area 2 - Waste Transport/Eastern & Central Teams,Materials General,4040,2  x BRAKE DISCS - DEP102593 - VU11HSZ - JFC13081,15/11/2019,0000449148,417.42,Revenue,DENNIS EAGLE LTD,00019774
South Ribble Council,http://statistics.data.gov.uk/doc/local-authority/30UN,Area 2 - Waste Transport/Eastern & Central Teams,Materials General,4040,"1 X WIRE FOOT DROWEL, SHACKLE PIN, 2 BUSHES, 2 NUTS, 2 WASHERS  VU11HSZ JFC 13575",15/11/2019,0000450833,303.70,Revenue,DENNIS EAGLE LTD,00019774
South Ribble Council,http://statistics.data.gov.uk/doc/local-authority/30UN,Area 2 - Waste Transport/Eastern & Central Teams,Materials General,4040,2 rear link arms VU11 HSZ JFC13573,15/11/2019,0000450915,651.97,Revenue,DENNIS EAGLE LTD,00019774
South Ribble Council,http://statistics.data.gov.uk/doc/local-authority/30UN,Property Services,Rep & Maint Premises,2020,Please service the gas suppression fire panel at the civic centre,20/11/2019,0000450962,675.00,Revenue,DES Electrical Services Ltd,131437
South Ribble Council,http://statistics.data.gov.uk/doc/local-authority/30UN,Property Services,Rep & Maint Fixed Plant,2031,Civic Centre - to  install relay on door to open on Fire Alarm Activation as per NAME REDACTED,20/11/2019,0000450966,430.00,Revenue,DES Electrical Services Ltd,131437
South Ribble Council,http://statistics.data.gov.uk/doc/local-authority/30UN,Area 3 - Parks/Leyland East West,Operational Furniture & Equip,4010,1 X MS261 C-M Chainsaw 16`` ST1142000501,06/11/2019,0000450695,462.00,Revenue,DICK LEIGH,00026534
South Ribble Council,http://statistics.data.gov.uk/doc/local-authority/30UN,Neighbourhood Admin & Support,Clothing- Uniforms & Laundry,4410,Sthill Type C Trousers,08/11/2019,0000450811,109.79,Revenue,DICK LEIGH,00026534
South Ribble Council,http://statistics.data.gov.uk/doc/local-authority/30UN,Neighbourhood Admin & Support,Clothing- Uniforms & Laundry,4410,Blue Mountain Boots,08/11/2019,0000450811,156.00,Revenue,DICK LEIGH,00026534
South Ribble Council,http://statistics.data.gov.uk/doc/local-authority/30UN,Area 3 - Parks/Leyland East West,Operational Furniture & Equip,4010,HS87R - 30`` HEDGETRIMMER (ST42370112991),22/11/2019,0000450881,698.00,Revenue,DICK LEIGH,00026534
South Ribble Council,http://statistics.data.gov.uk/doc/local-authority/30UN,Area 3 - Parks/Leyland East West,Operational Furniture & Equip,4010,CATCHER BAR 30`` HS86r /87r - ST423774103302,22/11/2019,0000450881,29.19,Revenue,DICK LEIGH,00026534
South Ribble Council,http://statistics.data.gov.uk/doc/local-authority/30UN,Area 2 - Waste Transport/Eastern & Central Teams,Operational Furniture & Equip,4010,5 HEDGE TRIMMER BLADE KITS - BIN1269,15/11/2019,0000450883,616.24,Revenue,DICK LEIGH,00026534
South Ribble Council,http://statistics.data.gov.uk/doc/local-authority/30UN,Area 2 - Waste Transport/Eastern & Central Teams,Operational Furniture & Equip,4010,5 x SET OF BLADES - BIN1269,15/11/2019,0000450883,415.28,Revenue,DICK LEIGH,00026534
South Ribble Council,http://statistics.data.gov.uk/doc/local-authority/30UN,Information Services,Peripherals,4247,Telephone & Engineer Onsite Printer Support Contract 18/10/19 - 17/10/20,01/11/2019,0000450651,780.00,Revenue,DIGITAL ID LTD,130641
South Ribble Council,http://statistics.data.gov.uk/doc/local-authority/30UN,Regeneration,Other Misc,4861,"Delivery of the Western Parishes Autumn newsletter and the Christmas What`s On Guide, to approx. 6,200 homes as discussed",29/11/2019,0000451225,465.00,Revenue,Door2doornorthwest,131705
South Ribble Council,http://statistics.data.gov.uk/doc/local-authority/30UN,Regeneration,Capital Expenditure,C230,Final Payment Penwortham Holme,06/11/2019,0000450701,"6,180.34",Revenue,DUNCAN ROSS LIMITED,130432
South Ribble Council,http://statistics.data.gov.uk/doc/local-authority/30UN,Information Services,Peripherals,4246,Annual maintenance renewal on 2 Fujitsu Scanners for period 31/01/20 - 30/01/21,13/11/2019,0000450884,"1,364.00",Revenue,E FILE UK LTD,00110958
South Ribble Council,http://statistics.data.gov.uk/doc/local-authority/30UN,Shared Assurance Services,Agency Fees,1121,Provision of Temporary Auditor,20/11/2019,0000450959,"1,448.94",Revenue,Eden Brown,132982
South Ribble Council,http://statistics.data.gov.uk/doc/local-authority/30UN,Information Services,Peripherals,4260,01 nov 2019,08/11/2019,0000450819,"2,640.58",Revenue,EE Ltd,131653
South Ribble Council,http://statistics.data.gov.uk/doc/local-authority/30UN,Information Services,Peripherals,4260,non vat,08/11/2019,0000450819,42.55,Revenue,EE Ltd,131653
South Ribble Council,http://statistics.data.gov.uk/doc/local-authority/30UN,Healthy Communities,Rep & Maint Premises,2020,Please fit blinds as per your estimate EST0031  for NAME REDACTED office - requested by NAME REDACTED,15/11/2019,0000450924,310.00,Revenue,EMPORIUM BLINDS UK,131036
South Ribble Council,http://statistics.data.gov.uk/doc/local-authority/30UN,Democratic Services,Other Misc,4422,"Hire of 22 polytop tables for South Ribble Election Postal Vote Opening and Ballot Box Filling, delivery on 18 Nov",08/11/2019,0000450821,798.00,Revenue,ev-ent Hire,131954
South Ribble Council,http://statistics.data.gov.uk/doc/local-authority/30UN,Democratic Services,Other Misc,4421,Hire of 26 Polytop tables  for South Ribble Postal Vote Opening and Ballot Box filling - details as above  48 tables in total,08/11/2019,0000450821,934.00,Revenue,ev-ent Hire,131954
South Ribble Council,http://statistics.data.gov.uk/doc/local-authority/30UN,Democratic Services,Other Misc,4421,del & Collect,08/11/2019,0000450821,50.00,Revenue,ev-ent Hire,131954
South Ribble Council,http://statistics.data.gov.uk/doc/local-authority/30UN,Democratic Services,Other Misc,4422,del & collect,08/11/2019,0000450821,50.00,Revenue,ev-ent Hire,131954
South Ribble Council,http://statistics.data.gov.uk/doc/local-authority/30UN,Democratic Services,Other Misc,4424,Hire of 120 polytop tables for South Ribble Election Count To be delivered on Weds 11 December,08/11/2019,0000450823,856.00,Revenue,ev-ent Hire,131954
South Ribble Council,http://statistics.data.gov.uk/doc/local-authority/30UN,Democratic Services,Other Misc,4424,1 del & collect,08/11/2019,0000450823,100.00,Revenue,ev-ent Hire,131954
South Ribble Council,http://statistics.data.gov.uk/doc/local-authority/30UN,Area 2 - Waste Transport/Eastern & Central Teams,Operational Furniture & Equip,4010,REPAIR TO WELDER,15/11/2019,0000450848,303.23,Revenue,EXPRESS CUTTING & WELDING SERVICES LTD,00050432
South Ribble Council,http://statistics.data.gov.uk/doc/local-authority/30UN,Area 3 - Parks/Leyland East West,External Contractors Charges,4570,HIRE OF FLAIL FOR 8 WEEKS (27/09/2019 - 22/11/2019) @ 360.00 PER WEEK,08/11/2019,0000450690,"1,512.00",Revenue,F R SHARROCK LTD,00034539
South Ribble Council,http://statistics.data.gov.uk/doc/local-authority/30UN,Area 2 - Waste Transport/Eastern & Central Teams,Materials General,4040,8 FILTER KITS BIN1230,22/11/2019,0000450787,852.26,Revenue,F R SHARROCK LTD,00034539
South Ribble Council,http://statistics.data.gov.uk/doc/local-authority/30UN,Area 3 - Parks/Leyland East West,Operational Furniture & Equip,4010,Ransome Marquis 61cm/24`` 5 knife c/w grass box,22/11/2019,0000451089,"3,200.00",Revenue,F R SHARROCK LTD,00034539
South Ribble Council,http://statistics.data.gov.uk/doc/local-authority/30UN,Democratic Services,Other Misc,4421,USE OF VENUE FOR THE EUROPEAN ELECTION ON THURSDAY 23 MAY 2019.  ,06/11/2019,0000450740,252.52,Revenue,FAYRE INNS,132334
South Ribble Council,http://statistics.data.gov.uk/doc/local-authority/30UN,Democratic Services,Other Misc,4421,Use of the venue for the Local Elections on Thursday 2 May 2019. ,06/11/2019,0000450743,252.52,Revenue,FAYRE INNS,132334
South Ribble Council,http://statistics.data.gov.uk/doc/local-authority/30UN,Area 2 - Waste Transport/Eastern & Central Teams,External Contractors Charges,4570,Residual Waste Collections October 2019,15/11/2019,0000450800,"45,660.96",Revenue,FCC Environment Services (UK) Ltd,131612
South Ribble Council,http://statistics.data.gov.uk/doc/local-authority/30UN,Area 2 - Waste Transport/Eastern & Central Teams,External Contractors Charges,4570,Dry recyclable non terraced - October 2019,15/11/2019,0000450800,"46,746.51",Revenue,FCC Environment Services (UK) Ltd,131612
South Ribble Council,http://statistics.data.gov.uk/doc/local-authority/30UN,Area 2 - Waste Transport/Eastern & Central Teams,External Contractors Charges,4570,Dry recyclable terraced - October 2019,15/11/2019,0000450800,"2,224.41",Revenue,FCC Environment Services (UK) Ltd,131612
South Ribble Council,http://statistics.data.gov.uk/doc/local-authority/30UN,Area 2 - Waste Transport/Eastern & Central Teams,External Contractors Charges,4570,Organic Waste (non-terraced) - October 2019,15/11/2019,0000450800,"32,371.11",Revenue,FCC Environment Services (UK) Ltd,131612
South Ribble Council,http://statistics.data.gov.uk/doc/local-authority/30UN,Area 2 - Waste Transport/Eastern & Central Teams,External Contractors Charges,4570,Schedule 2 properties - October 2019,15/11/2019,0000450800,"1,860.35",Revenue,FCC Environment Services (UK) Ltd,131612
South Ribble Council,http://statistics.data.gov.uk/doc/local-authority/30UN,Area 2 - Waste Transport/Eastern & Central Teams,External Contractors Charges,4570,Commercial waste collections - October 2019,15/11/2019,0000450800,"7,249.95",Revenue,FCC Environment Services (UK) Ltd,131612
South Ribble Council,http://statistics.data.gov.uk/doc/local-authority/30UN,Area 2 - Waste Transport/Eastern & Central Teams,External Contractors Charges,4570,Bulky waste collection - October 2019,15/11/2019,0000450800,"1,005.57",Revenue,FCC Environment Services (UK) Ltd,131612
South Ribble Council,http://statistics.data.gov.uk/doc/local-authority/30UN,Area 2 - Waste Transport/Eastern & Central Teams,External Contractors Charges,4570,WEEE collections - October 2019,15/11/2019,0000450800,377.48,Revenue,FCC Environment Services (UK) Ltd,131612
South Ribble Council,http://statistics.data.gov.uk/doc/local-authority/30UN,Area 2 - Waste Transport/Eastern & Central Teams,External Contractors Charges,4570,Clinical waste collections - October 2019,15/11/2019,0000450800,643.04,Revenue,FCC Environment Services (UK) Ltd,131612
South Ribble Council,http://statistics.data.gov.uk/doc/local-authority/30UN,Area 2 - Waste Transport/Eastern & Central Teams,External Contractors Charges,4570,Replacement bins - October 2019,15/11/2019,0000450800,"5,000.00",Revenue,FCC Environment Services (UK) Ltd,131612
South Ribble Council,http://statistics.data.gov.uk/doc/local-authority/30UN,Area 2 - Waste Transport/Eastern & Central Teams,External Contractors Charges,4570,Additional Properties - October 2019,15/11/2019,0000450800,"2,941.70",Revenue,FCC Environment Services (UK) Ltd,131612
South Ribble Council,http://statistics.data.gov.uk/doc/local-authority/30UN,Area 2 - Waste Transport/Eastern & Central Teams,Balance Sheet,0030,retention refuse,15/11/2019,0000450800,"-2,986.95",Revenue,FCC Environment Services (UK) Ltd,131612
South Ribble Council,http://statistics.data.gov.uk/doc/local-authority/30UN,Area 2 - Waste Transport/Eastern & Central Teams,Balance Sheet,0030,retention recycl,15/11/2019,0000450800,"-4,067.10",Revenue,FCC Environment Services (UK) Ltd,131612
South Ribble Council,http://statistics.data.gov.uk/doc/local-authority/30UN,Area 2 - Waste Transport/Eastern & Central Teams,External Contractors Charges,4570,Charge for COTC cover October 2019 - 5 weeks @ 120.00,08/11/2019,0000450801,600.00,Revenue,FCC Environment Services (UK) Ltd,131612
South Ribble Council,http://statistics.data.gov.uk/doc/local-authority/30UN,Area 2 - Waste Transport/Eastern & Central Teams,External Contractors Charges,4570,Additional Clinical Waste Collections - October 2019,13/11/2019,0000450805,309.52,Revenue,FCC Environment Services (UK) Ltd,131612
South Ribble Council,http://statistics.data.gov.uk/doc/local-authority/30UN,Area 2 - Waste Transport/Eastern & Central Teams,Balance Sheet,0030,retention,13/11/2019,0000450805,-15.48,Revenue,FCC Environment Services (UK) Ltd,131612
South Ribble Council,http://statistics.data.gov.uk/doc/local-authority/30UN,Area 2 - Waste Transport/Eastern & Central Teams,External Contractors Charges,4570,Additional Bulky Waste Collections - October 2019,15/11/2019,0000450887,465.63,Revenue,FCC Environment Services (UK) Ltd,131612
South Ribble Council,http://statistics.data.gov.uk/doc/local-authority/30UN,Area 2 - Waste Transport/Eastern & Central Teams,External Contractors Charges,4570,Additional WEEE Collections - October 2019,15/11/2019,0000450887,394.22,Revenue,FCC Environment Services (UK) Ltd,131612
South Ribble Council,http://statistics.data.gov.uk/doc/local-authority/30UN,Area 2 - Waste Transport/Eastern & Central Teams,Balance Sheet,0030,retention,15/11/2019,0000450887,-47.35,Revenue,FCC Environment Services (UK) Ltd,131612
South Ribble Council,http://statistics.data.gov.uk/doc/local-authority/30UN,Area 3 - Parks/Leyland East West,Grounds Maint Cntrctrs Chgs,4657,1 X SP100 2.440 X 1.220 X 6MM SKATE LITE UNDRILLED,08/11/2019,0000450729,223.25,Revenue,FENLAND LEISURE LTD,130725
South Ribble Council,http://statistics.data.gov.uk/doc/local-authority/30UN,Area 3 - Parks/Leyland East West,Grounds Maint Cntrctrs Chgs,4657,1 X PACK OF 100 4.8 X 25 STAINLESS STEEL POP RIVETS,08/11/2019,0000450729,7.13,Revenue,FENLAND LEISURE LTD,130725
South Ribble Council,http://statistics.data.gov.uk/doc/local-authority/30UN,Area 3 - Parks/Leyland East West,Grounds Maint Cntrctrs Chgs,4657,DELIVERY CHARGE,08/11/2019,0000450729,80.00,Revenue,FENLAND LEISURE LTD,130725
South Ribble Council,http://statistics.data.gov.uk/doc/local-authority/30UN,Information Services,Capital Expenditure,C234,"Integrations Services for Maintel Telephony System (One-off fee) 5,000.00 and Project Management 750.00, as per quote",27/11/2019,0000450894,"5,750.00",Revenue,FIRMSTEP,00114022
South Ribble Council,http://statistics.data.gov.uk/doc/local-authority/30UN,Neighbourhood Admin & Support,Materials General,4040,FOOTBALL PITCH LINE MARKER PAINT 10LTRS - PITCHMARKER Q2,20/11/2019,0000450994,487.20,Revenue,Fleet Line Markers Limited,131942
South Ribble Council,http://statistics.data.gov.uk/doc/local-authority/30UN,Area 2 - Waste Transport/Eastern & Central Teams,External Contractors Charges,4570,59 Units of Quartex Telematics @ 12.90 per unit 1.12.19 - 31.12.19,08/11/2019,0000450696,761.10,Revenue,FLEETCHECK LTD,130457
South Ribble Council,http://statistics.data.gov.uk/doc/local-authority/30UN,Area 2 - Waste Transport/Eastern & Central Teams,External Contractors Charges,4570,59 Units of Quartex Telematics @ 12.90 per unit 1.11.19 - 30.11.19,08/11/2019,0000450707,761.10,Revenue,FLEETCHECK LTD,130457
South Ribble Council,http://statistics.data.gov.uk/doc/local-authority/30UN,Regeneration,Other Misc,4851,Contribution towards an Aluminium Composite Panel to be installed at Lostock Hall Railway Station,08/11/2019,0000450832,545.59,Revenue,Friends of Lostock Hall Station,132816
South Ribble Council,http://statistics.data.gov.uk/doc/local-authority/30UN,Neighbourhood Admin & Support,Vehicle Running Costs,3131,FUEL W/C 18/11/2019,29/11/2019,0000451298,280.68,Revenue,Fuel Card Services,132365
South Ribble Council,http://statistics.data.gov.uk/doc/local-authority/30UN,Area 2 - Waste Transport/Eastern & Central Teams,Materials General,4040,STEERING ORB PN10HVJ JFC 13654,27/11/2019,0000451216,493.93,Revenue,GIBSONS GARDEN MACHINERY LTD,00059051
South Ribble Council,http://statistics.data.gov.uk/doc/local-authority/30UN,Area 2 - Waste Transport/Eastern & Central Teams,Materials General,4040,CLUTCH KIT PF04ULU JFC 13546,29/11/2019,0000451229,351.81,Revenue,GIBSONS GARDEN MACHINERY LTD,00059051
South Ribble Council,http://statistics.data.gov.uk/doc/local-authority/30UN,Area 2 - Waste Transport/Eastern & Central Teams,Materials General,4040,RELEASE BEARING PF04ULU JFC 13546,29/11/2019,0000451229,31.86,Revenue,GIBSONS GARDEN MACHINERY LTD,00059051
South Ribble Council,http://statistics.data.gov.uk/doc/local-authority/30UN,Area 2 - Waste Transport/Eastern & Central Teams,Materials General,4040,6 X CLUTCH BOLTS PF04ULU JFC 13546,29/11/2019,0000451229,1.24,Revenue,GIBSONS GARDEN MACHINERY LTD,00059051
South Ribble Council,http://statistics.data.gov.uk/doc/local-authority/30UN,Area 2 - Waste Transport/Eastern & Central Teams,Materials General,4040,6 X FLYWHEEL BOLTS PF04ULU JFC 13546,29/11/2019,0000451229,61.02,Revenue,GIBSONS GARDEN MACHINERY LTD,00059051
South Ribble Council,http://statistics.data.gov.uk/doc/local-authority/30UN,Area 2 - Waste Transport/Eastern & Central Teams,Materials General,4040,CRANK SHAFT OIL SEAL PF04ULU JFC 13546,29/11/2019,0000451229,15.51,Revenue,GIBSONS GARDEN MACHINERY LTD,00059051
South Ribble Council,http://statistics.data.gov.uk/doc/local-authority/30UN,Area 2 - Waste Transport/Eastern & Central Teams,Materials General,4040,PROP SHAFT GASKET PF04ULU JFC 13546,29/11/2019,0000451229,3.10,Revenue,GIBSONS GARDEN MACHINERY LTD,00059051
South Ribble Council,http://statistics.data.gov.uk/doc/local-authority/30UN,Area 2 - Waste Transport/Eastern & Central Teams,Materials General,4040,THROTTLE CABLE PF04ULU JFC 13546,29/11/2019,0000451229,10.48,Revenue,GIBSONS GARDEN MACHINERY LTD,00059051
South Ribble Council,http://statistics.data.gov.uk/doc/local-authority/30UN,Area 2 - Waste Transport/Eastern & Central Teams,Materials General,4040,ACCELERATOR CABLE PF04ULU JFC 13546,29/11/2019,0000451229,13.99,Revenue,GIBSONS GARDEN MACHINERY LTD,00059051
South Ribble Council,http://statistics.data.gov.uk/doc/local-authority/30UN,Housing,Cap Grant- Improve Grants,C570,DFG WORKS FOR BATHROOM  AS PER SRBC SPEC AT ADDRESS REDACTED QUOTE 5280.00 TOTAL GRANT PAYABLE 5280.00,29/11/2019,0000451315,"5,280.00",Revenue,GOS Heating Ltd,131387
South Ribble Council,http://statistics.data.gov.uk/doc/local-authority/30UN,Revenues Plus,Professional Fees,4510,Bankruptcy Charging Order,01/11/2019,0000450656,256.00,Revenue,Greenhalgh Kerr,132061
South Ribble Council,http://statistics.data.gov.uk/doc/local-authority/30UN,Revenues Plus,Professional Fees,4510,non vat,01/11/2019,0000450656,174.00,Revenue,Greenhalgh Kerr,132061
South Ribble Council,http://statistics.data.gov.uk/doc/local-authority/30UN,Revenues Plus,Professional Fees,4510,Bankruptcy Charging Order,29/11/2019,0000450693,542.50,Revenue,Greenhalgh Kerr,132061
South Ribble Council,http://statistics.data.gov.uk/doc/local-authority/30UN,Area 2 - Waste Transport/Eastern & Central Teams,Materials General,4040,3 X DISC PADS BIN 539,08/11/2019,0000450700,255.00,Revenue,H & J SERVICES LTD,00114446
South Ribble Council,http://statistics.data.gov.uk/doc/local-authority/30UN,Area 2 - Waste Transport/Eastern & Central Teams,Materials General,4040,VARIOUS FILTERS,08/11/2019,0000450786,455.64,Revenue,H & J SERVICES LTD,00114446
South Ribble Council,http://statistics.data.gov.uk/doc/local-authority/30UN,Neighbourhood Admin & Support,Vehicle Running Costs,3132,15000LT X DIESEL (TANK 1) @ 104.64 PPL,08/11/2019,0000450167,"15,634.72",Revenue,Hall Fuels trading name of WFL (UK) Ltd,00116758
South Ribble Council,http://statistics.data.gov.uk/doc/local-authority/30UN,Neighbourhood Admin & Support,Vehicle Running Costs,3132,15000LT X DIESEL (TANK 1) @ 103.12 PPL,08/11/2019,0000450317,"15,468.00",Revenue,Hall Fuels trading name of WFL (UK) Ltd,00116758
South Ribble Council,http://statistics.data.gov.uk/doc/local-authority/30UN,Neighbourhood Admin & Support,Vehicle Running Costs,3134,2000LT X GAS OIL (TANK 2) @ 58.41,08/11/2019,0000450319,"1,133.40",Revenue,Hall Fuels trading name of WFL (UK) Ltd,00116758
South Ribble Council,http://statistics.data.gov.uk/doc/local-authority/30UN,Neighbourhood Admin & Support,Vehicle Running Costs,3132,15000LT X DIESEL (TANK 1) @ 103.65 PPL,08/11/2019,0000450608,"15,302.04",Revenue,Hall Fuels trading name of WFL (UK) Ltd,00116758
South Ribble Council,http://statistics.data.gov.uk/doc/local-authority/30UN,Neighbourhood Admin & Support,Vehicle Running Costs,3132,15000LT X DIESEL (TANK 1) @ 101.98,08/11/2019,0000450831,"15,298.02",Revenue,Hall Fuels trading name of WFL (UK) Ltd,00116758
South Ribble Council,http://statistics.data.gov.uk/doc/local-authority/30UN,Neighbourhood Admin & Support,Vehicle Running Costs,3132,15000LT X DIESEL (TANK 1) @ 101.29,27/11/2019,0000451008,"14,300.62",Revenue,Hall Fuels trading name of WFL (UK) Ltd,00116758
South Ribble Council,http://statistics.data.gov.uk/doc/local-authority/30UN,Neighbourhood Admin & Support,Vehicle Running Costs,3132,15000LT X DIESEL (TANK 1) @ 101.73,29/11/2019,0000451248,"14,271.22",Revenue,Hall Fuels trading name of WFL (UK) Ltd,00116758
South Ribble Council,http://statistics.data.gov.uk/doc/local-authority/30UN,Shared Assurance Services,Agency Fees,1121,NAME REDACTED - Temporary Head of Shared Assurance Services for week ending period 19/04/2019 - 01/11/2019 ,06/11/2019,0000450660,"1,327.34",Revenue,Hays Specialist Recruitment Ltd,132288
South Ribble Council,http://statistics.data.gov.uk/doc/local-authority/30UN,Shared Assurance Services,Agency Fees,1121,NAME REDACTED - Temporary Head of Shared Assurance Services for week ending period 19/04/2019 - 01/11/2019 ,06/11/2019,0000450665,"2,311.62",Revenue,Hays Specialist Recruitment Ltd,132288
South Ribble Council,http://statistics.data.gov.uk/doc/local-authority/30UN,Shared Assurance Services,Agency Fees,1121,Provision of a temporary Auditor,13/11/2019,0000450726,"1,537.06",Revenue,Hays Specialist Recruitment Ltd,132288
South Ribble Council,http://statistics.data.gov.uk/doc/local-authority/30UN,Shared Assurance Services,Agency Fees,1121,NAME REDACTED - Temporary Head of Shared Assurance Services for week ending period 19/04/2019 - 01/11/2019 ,22/11/2019,0000450727,"2,840.02",Revenue,Hays Specialist Recruitment Ltd,132288
South Ribble Council,http://statistics.data.gov.uk/doc/local-authority/30UN,Shared Assurance Services,Agency Fees,1121,NAME REDACTED - Temporary Head of Shared Assurance Services for week ending period 19/04/2019 - 01/11/2019 ,22/11/2019,0000450728,"2,448.60",Revenue,Hays Specialist Recruitment Ltd,132288
South Ribble Council,http://statistics.data.gov.uk/doc/local-authority/30UN,Shared Assurance Services,Agency Fees,1121,NAME REDACTED - Temporary Head of Shared Assurance Services for week ending period 19/04/2019 - 01/11/2019 ,22/11/2019,0000450951,"2,237.93",Revenue,Hays Specialist Recruitment Ltd,132288
South Ribble Council,http://statistics.data.gov.uk/doc/local-authority/30UN,Regeneration,Printing,4127,Living Well Guide Amendments,06/11/2019,0000450347,325.00,Revenue,HECKFORD PRINTING LTD T/A HECKFORD ADVER,00023388
South Ribble Council,http://statistics.data.gov.uk/doc/local-authority/30UN,Healthy Communities,Advertising,4842,Sponsorship of Factory to Festival Bike Ride 350,01/11/2019,0000450557,350.00,Revenue,Helping Hand,132843
South Ribble Council,http://statistics.data.gov.uk/doc/local-authority/30UN,Regeneration,Capital Expenditure,C230,Noise assessment,29/11/2019,0000450988,"1,495.00",Revenue,Hepworth Acoustics Ltd,132958
South Ribble Council,http://statistics.data.gov.uk/doc/local-authority/30UN,Shared Financial Services,Balance Sheet,0140,,15/11/2019,0000450339,401.00,Revenue,HM REVENUE & CUSTOMS,00024837
South Ribble Council,http://statistics.data.gov.uk/doc/local-authority/30UN,Shared Financial Services,Balance Sheet,0140,,15/11/2019,0000450648,288.20,Revenue,HM REVENUE & CUSTOMS,00024837
South Ribble Council,http://statistics.data.gov.uk/doc/local-authority/30UN,Area 2 - Waste Transport/Eastern & Central Teams,Materials General,4040,3mt x 3mts 6mm Hardox Steel Plate Ordered August 2019,01/11/2019,0000450646,588.89,Revenue,Holdens CVE Limited,132119
South Ribble Council,http://statistics.data.gov.uk/doc/local-authority/30UN,Regeneration,Capital Expenditure,C230,"10no. Durban Style Lecterns (73004) , 15no. Cardiff Style Lecterns (72003 A3) , Storage and 3 separate deliveries",01/11/2019,0000450593,"10,620.95",Revenue,Hornbeck Ltd T/A Landmark,132367
South Ribble Council,http://statistics.data.gov.uk/doc/local-authority/30UN,Planning,Consultancy Fees,4541,"SRBC Pickerings Farm: Pickerings Farm pre/planning app, Process improvements, Test track conditions/Wider strategic sites advice",27/11/2019,0000451194,"2,368.87",Revenue,Hyas Associates Ltd,132850
South Ribble Council,http://statistics.data.gov.uk/doc/local-authority/30UN,Property Services,Rep & Maint Premises,2020,To replace the carpet tiles in the ground floor corridor at the Civic Centre as per quotation JD/039,06/11/2019,0000450636,"1,210.00",Revenue,HYDE FLOORING CO LTD,00023605
South Ribble Council,http://statistics.data.gov.uk/doc/local-authority/30UN,HR & Communications,Professional Fees,4520,Investors In People - 12 Month Review / Health & Wellbeing Review Date: 08/11/2019,27/11/2019,0000451177,800.00,Revenue,IMPROVEMENT DEVELOPMENT GROWTH LTD,00120870
South Ribble Council,http://statistics.data.gov.uk/doc/local-authority/30UN,Revenues Plus,Professional Fees,4510,RV Finder - ADDRESS REDACTED,06/11/2019,0000450781,300.00,Revenue,Inform CPI Ltd,131666
South Ribble Council,http://statistics.data.gov.uk/doc/local-authority/30UN,Information Services,Financial,4813,Data Protection renewal for SRBC reference no. Z496241X for 12 months from 20/12/19,13/11/2019,0000450861,"2,900.00",Revenue,INFORMATION COMMISSIONER,00053293
South Ribble Council,http://statistics.data.gov.uk/doc/local-authority/30UN,Area 3 - Parks/Leyland East West,Materials General,4046,Tree Giveaway 2019,29/11/2019,0000451084,"1,692.75",Revenue,J A JONES & SONS,00025548
South Ribble Council,http://statistics.data.gov.uk/doc/local-authority/30UN,Area 2 - Waste Transport/Eastern & Central Teams,External Contractors Charges,4570,"1130 litre bunded new oil tank with a 2� socket for existing pump, base channels for air circulation, 2� fill point, dipstick & float contents gauge. ",01/11/2019,0000450605,795.00,Revenue,J SEED & CO LTD,00121675
South Ribble Council,http://statistics.data.gov.uk/doc/local-authority/30UN,Area 2 - Waste Transport/Eastern & Central Teams,Capital Expenditure,C230,1 x refurbished Envirostore 5000 litre bunded ad-blue tank as per your quotation dated 7.8.19,01/11/2019,0000450606,"2,250.00",Revenue,J SEED & CO LTD,00121675
South Ribble Council,http://statistics.data.gov.uk/doc/local-authority/30UN,Regeneration,Capital Expenditure,C230,cancelled by credit3905,22/11/2019,0000447079,"88,154.70",Revenue,John Wade Groundworks Ltd t/a Wade Group,131568
South Ribble Council,http://statistics.data.gov.uk/doc/local-authority/30UN,Regeneration,Capital Expenditure,C230,Works at Dog Kennel Wood as per payment schedule,22/11/2019,0000448788,"28,680.60",Revenue,John Wade Groundworks Ltd t/a Wade Group,131568
South Ribble Council,http://statistics.data.gov.uk/doc/local-authority/30UN,Planning,Advertising,4841,Public notices for planning application to be published in the Lancashire Evening Post,01/11/2019,0000450524,675.78,Revenue,JPI Media - JOHNSTON PUBLISHING (NORTH WEST),00011345
South Ribble Council,http://statistics.data.gov.uk/doc/local-authority/30UN,Planning,Advertising,4841,Public notices for planning application to be published in the Lancashire Evening Post,27/11/2019,0000450719,729.00,Revenue,JPI Media - JOHNSTON PUBLISHING (NORTH WEST),00011345
South Ribble Council,http://statistics.data.gov.uk/doc/local-authority/30UN,Planning,Advertising,4841,Public notices for planning application to be published in the Lancashire Evening Post,08/11/2019,0000450812,729.00,Revenue,JPI Media - JOHNSTON PUBLISHING (NORTH WEST),00011345
South Ribble Council,http://statistics.data.gov.uk/doc/local-authority/30UN,Planning,Advertising,4841,Public notices for planning application to be published in the Lancashire Evening Post,27/11/2019,0000450978,729.00,Revenue,JPI Media - JOHNSTON PUBLISHING (NORTH WEST),00011345
South Ribble Council,http://statistics.data.gov.uk/doc/local-authority/30UN,Planning,Professional Fees,4510,"Work undertaken since February for Test Track Site - meetings, research, appraisals, review of contract and preparation of S106 & discussions",08/11/2019,0000450849,"13,492.00",Revenue,Keppie Massie,131948
South Ribble Council,http://statistics.data.gov.uk/doc/local-authority/30UN,Neighbourhood Admin & Support,Clothing- Uniforms & Laundry,4410,GLOVES - WINTER HV ORANGE GRAB & GRIP PORTWEST A185 SIZE 9 - A185,01/11/2019,0000449751,30.00,Revenue,KEY ENGINEERING & HYGIENE SUPPLIES LTD,00083658
South Ribble Council,http://statistics.data.gov.uk/doc/local-authority/30UN,Neighbourhood Admin & Support,Clothing- Uniforms & Laundry,4410,GLOVES -  SIZE  9  PORTWEST A622 CUT 5 - A622,01/11/2019,0000449751,56.16,Revenue,KEY ENGINEERING & HYGIENE SUPPLIES LTD,00083658
South Ribble Council,http://statistics.data.gov.uk/doc/local-authority/30UN,Neighbourhood Admin & Support,Clothing- Uniforms & Laundry,4410,GLOVES -  SIZE  10 - PORTWEST A622  CUT 5 - A622,01/11/2019,0000449751,56.16,Revenue,KEY ENGINEERING & HYGIENE SUPPLIES LTD,00083658
South Ribble Council,http://statistics.data.gov.uk/doc/local-authority/30UN,Neighbourhood Admin & Support,Clothing- Uniforms & Laundry,4410,BODYWARMER - WROXHAM  FORTRESS c/w SRBC LOGO large - WROXHAM,01/11/2019,0000449751,34.77,Revenue,KEY ENGINEERING & HYGIENE SUPPLIES LTD,00083658
South Ribble Council,http://statistics.data.gov.uk/doc/local-authority/30UN,Neighbourhood Admin & Support,Clothing- Uniforms & Laundry,4410,FLEECE NAVY - PORTWEST F400 LARGE - F400,01/11/2019,0000449751,52.35,Revenue,KEY ENGINEERING & HYGIENE SUPPLIES LTD,00083658
South Ribble Council,http://statistics.data.gov.uk/doc/local-authority/30UN,Neighbourhood Admin & Support,Clothing- Uniforms & Laundry,4410,BLUE JACKETS - LADIES REGATTA BENSON II 3 IN 1 NAVY Size 12 - TRA123,01/11/2019,0000449751,78.26,Revenue,KEY ENGINEERING & HYGIENE SUPPLIES LTD,00083658
South Ribble Council,http://statistics.data.gov.uk/doc/local-authority/30UN,Neighbourhood Admin & Support,Clothing- Uniforms & Laundry,4410,Bomber Jacket - PORTWEST C466 LARGE - C466,15/11/2019,0000450900,209.82,Revenue,KEY ENGINEERING & HYGIENE SUPPLIES LTD,00083658
South Ribble Council,http://statistics.data.gov.uk/doc/local-authority/30UN,Neighbourhood Admin & Support,Clothing- Uniforms & Laundry,4410,Bomber Jacket - PORTWEST C466 X LARGE - C466,15/11/2019,0000450900,209.82,Revenue,KEY ENGINEERING & HYGIENE SUPPLIES LTD,00083658
South Ribble Council,http://statistics.data.gov.uk/doc/local-authority/30UN,Regeneration,Contributions,4730,Holiday Hunger Project,01/11/2019,0000450181,"1,536.00",Revenue,KEY UNLOCKING FUTURES LTD,00098601
South Ribble Council,http://statistics.data.gov.uk/doc/local-authority/30UN,Regeneration,Other Misc,4861,contribution towards young people activities,15/11/2019,0000450947,300.00,Revenue,KEY UNLOCKING FUTURES LTD,00098601
South Ribble Council,http://statistics.data.gov.uk/doc/local-authority/30UN,Healthy Communities,Sports Dev Expenses,4894,Delivery of Kinball training and starter pack Total cost 680.00,06/11/2019,0000449821,680.00,Revenue,Kinball Uk CIC,132940
South Ribble Council,http://statistics.data.gov.uk/doc/local-authority/30UN,Revenues Plus,Balance Sheet,0001,,22/11/2019,0000451161,295.00,Revenue,LANCASHIRE FOOTBALL ASSOCIATION LTD,00028066
South Ribble Council,http://statistics.data.gov.uk/doc/local-authority/30UN,Area 2 - Waste Transport/Eastern & Central Teams,Waste Disposal Charges,5112,cancelled by credit 15333159,06/11/2019,0000449535,530.80,Revenue,LANCASHIRE TEACHING FT,00120715
South Ribble Council,http://statistics.data.gov.uk/doc/local-authority/30UN,Area 2 - Waste Transport/Eastern & Central Teams,Waste Disposal Charges,5112,July 2019 - Incineration of Clinical Waste,06/11/2019,0000450749,578.74,Revenue,LANCASHIRE TEACHING FT,00120715
South Ribble Council,http://statistics.data.gov.uk/doc/local-authority/30UN,Area 2 - Waste Transport/Eastern & Central Teams,Waste Disposal Charges,5112,September 2019 - Incineration of Clinical Waste,27/11/2019,0000451036,344.25,Revenue,LANCASHIRE TEACHING FT,00120715
South Ribble Council,http://statistics.data.gov.uk/doc/local-authority/30UN,Area 2 - Waste Transport/Eastern & Central Teams,Waste Disposal Charges,5112,August 2019 - Incineration of Clinical Waste,27/11/2019,0000451050,297.38,Revenue,LANCASHIRE TEACHING FT,00120715
South Ribble Council,http://statistics.data.gov.uk/doc/local-authority/30UN,Area 2 - Waste Transport/Eastern & Central Teams,Waste Disposal Charges,5112,June 2019 - Incineration of Clinical Waste,27/11/2019,0000451055,335.60,Revenue,LANCASHIRE TEACHING FT,00120715
South Ribble Council,http://statistics.data.gov.uk/doc/local-authority/30UN,Legal,Other Local Authorities,4530,LAND CHARGES - OCTOBER 2019,15/11/2019,0000450820,"1,003.50",Revenue,LANCS COUNTY COUNCIL,00041645
South Ribble Council,http://statistics.data.gov.uk/doc/local-authority/30UN,Housing,Cap Grant- Improve Grants,C570,DFG WORKS TO SUPPLY AND INSTALL A STAIRLIFT AT ADDRESS REDACTED. As per quote supplied of 2879.00 Total cost 2879.00,29/11/2019,0000451294,"2,879.00",Revenue,LANCS COUNTY COUNCIL,00041645
South Ribble Council,http://statistics.data.gov.uk/doc/local-authority/30UN,Regeneration,Professional Fees,4510,Leading friends Group Preston Junction,01/11/2019,0000450622,"1,250.00",Revenue,LANCS WILDLIFE TRUST,00027009
South Ribble Council,http://statistics.data.gov.uk/doc/local-authority/30UN,Regeneration,Capital Expenditure,C230,15x Aluminium signs double sided 2x Aluminium signs single sided,20/11/2019,0000450124,781.80,Revenue,LCC SIGN SHOP,00027096
South Ribble Council,http://statistics.data.gov.uk/doc/local-authority/30UN,Regeneration,Capital Expenditure,C230,20x Galvanised steel posts 3500mm and 3x directional arrows,20/11/2019,0000450125,"1,129.98",Revenue,LCC SIGN SHOP,00027096
South Ribble Council,http://statistics.data.gov.uk/doc/local-authority/30UN,Neighbourhood Admin & Support,Materials General,4040,REPAIRS TO BARRIER ON KING STREET CARPARK,06/11/2019,0000450520,745.00,Revenue,Leyland Lane Wrought Iron Gates & Railings,132012
South Ribble Council,http://statistics.data.gov.uk/doc/local-authority/30UN,Property Services,Rep & Maint Premises,2020,"Please supply a  security gate painted yellow at number 2 forward industrial estate, as per NAME REDACTED",22/11/2019,0000451056,690.00,Revenue,Leyland Lane Wrought Iron Gates & Railings,132012
South Ribble Council,http://statistics.data.gov.uk/doc/local-authority/30UN,Regeneration,Other Misc,4851,vets caf,15/11/2019,0000450995,"2,313.00",Revenue,Leyland Veterans Cafe,132973
South Ribble Council,http://statistics.data.gov.uk/doc/local-authority/30UN,Information Services,Peripherals,4246,Openscape 4000 engineer site visit to re-flash 25 x CP205 handsets to HFA,08/11/2019,0000450808,750.00,Revenue,Lloyds-IP t/a Lloyds Business Communications Ltd,132971
South Ribble Council,http://statistics.data.gov.uk/doc/local-authority/30UN,Area 3 - Parks/Leyland East West,Grounds Maint Cntrctrs Chgs,4657,20 TONS 10mm PIPE BEDDING - Delivered to Worden Park Depot,22/11/2019,0000451132,433.84,Revenue,M C & M A STEWART HAULAGE LTD,00035567
South Ribble Council,http://statistics.data.gov.uk/doc/local-authority/30UN,Housing,Cap Grant- Improve Grants,C570,DFG WORKS FOR LEVEL ACCESS BATHROOM AT ADDRESS REDACTED. New progress property so 50% paid via the grant is 1960.00,08/11/2019,0000450789,"1,845.00",Revenue,MAHONEY CONTRACTORS LTD,131271
South Ribble Council,http://statistics.data.gov.uk/doc/local-authority/30UN,Housing,Cap Grant- Improve Grants,C570,"DFG WORKS FOR LEVEL ACCESS BATHROOM AT ADDRESS REDACTED. New progress property,50% of quote paid by grant is 7309.00",13/11/2019,0000450898,"7,309.00",Revenue,MAHONEY CONTRACTORS LTD,131271
South Ribble Council,http://statistics.data.gov.uk/doc/local-authority/30UN,Housing,Cap Grant- Improve Grants,C570,DFG WORKS FOR LEVEL ACCESS BATHROOM AT ADDRESS REDACTED. New progress property so 50%  paid via the grant is 2922.67,15/11/2019,0000450961,"2,977.36",Revenue,MAHONEY CONTRACTORS LTD,131271
South Ribble Council,http://statistics.data.gov.uk/doc/local-authority/30UN,Revenues Plus,Capital Expenditure,C234,As per quote 0052638 installation cost 67318 plus 5 years maintenance billed annually cost 9253 x5. Total cost 113583.00,27/11/2019,0000450708,"10,012.38",Revenue,Maintel Europe Ltd,132500
South Ribble Council,http://statistics.data.gov.uk/doc/local-authority/30UN,Area 2 - Waste Transport/Eastern & Central Teams,Cap Vehicles,C440,"Mercedes-Benz E Class Saloon E300e SE 4dr 9G-Tronic, Petrol/Plugin Elec Hybrid through the RM6060 framework on CCS in black",01/11/2019,0000450661,"32,404.01",Revenue,"Mercedes-Benz of Bolton, Marshall North West Ltd",132909
South Ribble Council,http://statistics.data.gov.uk/doc/local-authority/30UN,Area 2 - Waste Transport/Eastern & Central Teams,Cap Vehicles,C440,first reg fee,01/11/2019,0000450661,55.00,Revenue,"Mercedes-Benz of Bolton, Marshall North West Ltd",132909
South Ribble Council,http://statistics.data.gov.uk/doc/local-authority/30UN,Property Services,Capital Expenditure,C230,To undertake works to worden park clock tower as per estimate dated 26th June 2019,06/11/2019,0000450138,"9,200.00",Revenue,Mick Bamber,132873
South Ribble Council,http://statistics.data.gov.uk/doc/local-authority/30UN,Property Services,Rep & Maint Premises,2020,Please attend ADDRESS REDACTED - repairing roof and repairs as per estimate 1003,20/11/2019,0000450976,400.00,Revenue,Mick Bamber,132873
South Ribble Council,http://statistics.data.gov.uk/doc/local-authority/30UN,Property Services,Rep & Maint Premises,2020,Please attend ADDRESS REDACTED and do  repairs as per your estimate 1002,20/11/2019,0000450977,280.00,Revenue,Mick Bamber,132873
South Ribble Council,http://statistics.data.gov.uk/doc/local-authority/30UN,Area 2 - Waste Transport/Eastern & Central Teams,External Contractors Charges,4570,"Vehicle recovery YD19 AUM from Whalley Road, Eccleston - winched vehicle out of ditch onto hardstanding",01/11/2019,0000450612,350.00,Revenue,MILLERS OF LONGTON LTD,00028642
South Ribble Council,http://statistics.data.gov.uk/doc/local-authority/30UN,Legal,Legal,4821,"PROFESSIONAL ADVICE WITH REGARD TO LAND REAR OF OAKDENE, CHAIN HOUSE LANE, WHITESTAKE (PLANNING) ",29/11/2019,0000450748,"2,700.00",Revenue,Mr Alan Evans,131944
South Ribble Council,http://statistics.data.gov.uk/doc/local-authority/30UN,Area 2 - Waste Transport/Eastern & Central Teams,External Contractors Charges,4570,LOLER TEST - VO65KPY - JFC12413,22/11/2019,0000450960,60.00,Revenue,MUNICIPAL VEHICLE INSPECTION SERVICES LT,00096645
South Ribble Council,http://statistics.data.gov.uk/doc/local-authority/30UN,Area 2 - Waste Transport/Eastern & Central Teams,External Contractors Charges,4570,LOLER TEST - VO65KPX - JFC12412,22/11/2019,0000450960,60.00,Revenue,MUNICIPAL VEHICLE INSPECTION SERVICES LT,00096645
South Ribble Council,http://statistics.data.gov.uk/doc/local-authority/30UN,Area 2 - Waste Transport/Eastern & Central Teams,External Contractors Charges,4570,2 x LOLER TESTS @65 each VO65KRE - JFC12417,22/11/2019,0000450960,120.00,Revenue,MUNICIPAL VEHICLE INSPECTION SERVICES LT,00096645
South Ribble Council,http://statistics.data.gov.uk/doc/local-authority/30UN,Area 2 - Waste Transport/Eastern & Central Teams,External Contractors Charges,4570,2 x LOLER TESTS @65 each - VO65KRF - JFC 12413,22/11/2019,0000450960,120.00,Revenue,MUNICIPAL VEHICLE INSPECTION SERVICES LT,00096645
South Ribble Council,http://statistics.data.gov.uk/doc/local-authority/30UN,Area 2 - Waste Transport/Eastern & Central Teams,External Contractors Charges,4570,2 x LOLER TESTS @65each - VO65KRD - JFC12415,22/11/2019,0000450960,120.00,Revenue,MUNICIPAL VEHICLE INSPECTION SERVICES LT,00096645
South Ribble Council,http://statistics.data.gov.uk/doc/local-authority/30UN,Area 2 - Waste Transport/Eastern & Central Teams,External Contractors Charges,4570,2 x LOLER TESTS @65 each - VO65KPZ - JFC12414,22/11/2019,0000450960,120.00,Revenue,MUNICIPAL VEHICLE INSPECTION SERVICES LT,00096645
South Ribble Council,http://statistics.data.gov.uk/doc/local-authority/30UN,Area 3 - Parks/Leyland East West,Materials General,4040,Dell T5820 as per quote 183451-1,01/11/2019,0000450373,"2,090.00",Revenue,MYPREMIER LTD,130091
South Ribble Council,http://statistics.data.gov.uk/doc/local-authority/30UN,Information Services,Peripherals,4241,"2 x Apple 11`` iPad Pro @ 778.00 each; 2 x iPad Pro11Smart Keyboard @ 155.00 each, plus delivery @ 10.00, as per quote ref. 182353-2",13/11/2019,0000450880,"1,876.00",Revenue,MYPREMIER LTD,130091
South Ribble Council,http://statistics.data.gov.uk/doc/local-authority/30UN,Area 2 - Waste Transport/Eastern & Central Teams,External Contractors Charges,4570,SERVICE WASH VO65KPX JFC 13551,08/11/2019,0000450742,65.00,Revenue,NAYLORS TRANSPORT (LEYLAND) ltd,00114828
South Ribble Council,http://statistics.data.gov.uk/doc/local-authority/30UN,Area 2 - Waste Transport/Eastern & Central Teams,External Contractors Charges,4570,SERVICE WASH VX18KLC JFC 13552,08/11/2019,0000450742,65.00,Revenue,NAYLORS TRANSPORT (LEYLAND) ltd,00114828
South Ribble Council,http://statistics.data.gov.uk/doc/local-authority/30UN,Area 2 - Waste Transport/Eastern & Central Teams,External Contractors Charges,4570,SERVICE WASH VO65KRD JFC 13553,08/11/2019,0000450742,65.00,Revenue,NAYLORS TRANSPORT (LEYLAND) ltd,00114828
South Ribble Council,http://statistics.data.gov.uk/doc/local-authority/30UN,Area 2 - Waste Transport/Eastern & Central Teams,External Contractors Charges,4570,SERVICE WASH VO65KPY JFC 13554,08/11/2019,0000450742,65.00,Revenue,NAYLORS TRANSPORT (LEYLAND) ltd,00114828
South Ribble Council,http://statistics.data.gov.uk/doc/local-authority/30UN,Area 2 - Waste Transport/Eastern & Central Teams,External Contractors Charges,4570,SERVICE WASH VU11HSZ JFC 13555,08/11/2019,0000450742,65.00,Revenue,NAYLORS TRANSPORT (LEYLAND) ltd,00114828
South Ribble Council,http://statistics.data.gov.uk/doc/local-authority/30UN,Area 2 - Waste Transport/Eastern & Central Teams,External Contractors Charges,4570,SERVICE WASH VK09AHJ JFC 13556,08/11/2019,0000450742,65.00,Revenue,NAYLORS TRANSPORT (LEYLAND) ltd,00114828
South Ribble Council,http://statistics.data.gov.uk/doc/local-authority/30UN,Area 2 - Waste Transport/Eastern & Central Teams,External Contractors Charges,4570,SERVICE WASH VO65KRE JFC 13557,08/11/2019,0000450742,65.00,Revenue,NAYLORS TRANSPORT (LEYLAND) ltd,00114828
South Ribble Council,http://statistics.data.gov.uk/doc/local-authority/30UN,Area 2 - Waste Transport/Eastern & Central Teams,External Contractors Charges,4570,SERVICE WASH VO65KRF JFC 13558,08/11/2019,0000450742,65.00,Revenue,NAYLORS TRANSPORT (LEYLAND) ltd,00114828
South Ribble Council,http://statistics.data.gov.uk/doc/local-authority/30UN,Area 2 - Waste Transport/Eastern & Central Teams,External Contractors Charges,4570,SERVICE WASH YP11CFM JFC 13559,08/11/2019,0000450742,65.00,Revenue,NAYLORS TRANSPORT (LEYLAND) ltd,00114828
South Ribble Council,http://statistics.data.gov.uk/doc/local-authority/30UN,Area 2 - Waste Transport/Eastern & Central Teams,External Contractors Charges,4570,SERVICE WASH YD19ATZ JFC 13560,08/11/2019,0000450747,65.00,Revenue,NAYLORS TRANSPORT (LEYLAND) ltd,00114828
South Ribble Council,http://statistics.data.gov.uk/doc/local-authority/30UN,Area 2 - Waste Transport/Eastern & Central Teams,External Contractors Charges,4570,SERVICE WASH YD19ATK JFC 13561,08/11/2019,0000450747,65.00,Revenue,NAYLORS TRANSPORT (LEYLAND) ltd,00114828
South Ribble Council,http://statistics.data.gov.uk/doc/local-authority/30UN,Area 2 - Waste Transport/Eastern & Central Teams,External Contractors Charges,4570,SERVICE WASH VU60HLE JFC 13562,08/11/2019,0000450747,65.00,Revenue,NAYLORS TRANSPORT (LEYLAND) ltd,00114828
South Ribble Council,http://statistics.data.gov.uk/doc/local-authority/30UN,Area 2 - Waste Transport/Eastern & Central Teams,External Contractors Charges,4570,SERVICE WASH YD19AUO JFC 13563,08/11/2019,0000450747,65.00,Revenue,NAYLORS TRANSPORT (LEYLAND) ltd,00114828
South Ribble Council,http://statistics.data.gov.uk/doc/local-authority/30UN,Area 2 - Waste Transport/Eastern & Central Teams,External Contractors Charges,4570,SERVICE WASH YD19AUN JFC 13564,08/11/2019,0000450747,65.00,Revenue,NAYLORS TRANSPORT (LEYLAND) ltd,00114828
South Ribble Council,http://statistics.data.gov.uk/doc/local-authority/30UN,Area 2 - Waste Transport/Eastern & Central Teams,External Contractors Charges,4570,SERVICE WASH YD19AUT JFC 13565,08/11/2019,0000450747,65.00,Revenue,NAYLORS TRANSPORT (LEYLAND) ltd,00114828
South Ribble Council,http://statistics.data.gov.uk/doc/local-authority/30UN,Area 2 - Waste Transport/Eastern & Central Teams,External Contractors Charges,4570,SERVICE WASH YA19NKC JFC 13566,08/11/2019,0000450747,65.00,Revenue,NAYLORS TRANSPORT (LEYLAND) ltd,00114828
South Ribble Council,http://statistics.data.gov.uk/doc/local-authority/30UN,Area 2 - Waste Transport/Eastern & Central Teams,External Contractors Charges,4570,SERVICE WASH YD19AUM JFC 13567,08/11/2019,0000450747,65.00,Revenue,NAYLORS TRANSPORT (LEYLAND) ltd,00114828
South Ribble Council,http://statistics.data.gov.uk/doc/local-authority/30UN,Area 2 - Waste Transport/Eastern & Central Teams,External Contractors Charges,4570,SERVICE WASH YD19ATY JFC 13568,08/11/2019,0000450747,65.00,Revenue,NAYLORS TRANSPORT (LEYLAND) ltd,00114828
South Ribble Council,http://statistics.data.gov.uk/doc/local-authority/30UN,Area 3 - Parks/Leyland East West,Materials General,4046,Plants for conservatory (Worden Park) as per attached.,22/11/2019,0000450480,461.84,Revenue,NEWGATE NURSERIES,00069591
South Ribble Council,http://statistics.data.gov.uk/doc/local-authority/30UN,Property Services,Rep & Maint Premises,2020,"Worden Park Leyland PR25 1DJ and fix the issues with the pumping station - alarm has gone off, display saying full - as NAME REDACTED",01/11/2019,0000450664,315.00,Revenue,NORTH WEST MAINTENANCE SERVICES LTD,00114763
South Ribble Council,http://statistics.data.gov.uk/doc/local-authority/30UN,Healthy Communities,Advertising,4842,Use of playing field or indoor sports hall for sports activities/holiday camps. 15 days in total.,08/11/2019,0000450731,500.00,Revenue,NORTHBROOK COMMUNITY PRIMARY SCHOOL,131485
South Ribble Council,http://statistics.data.gov.uk/doc/local-authority/30UN,Healthy Communities,Advertising,4842,Use of playing field or indoor sports hall for sports activities/holiday camps. 15 days in total.,08/11/2019,0000450732,250.00,Revenue,NORTHBROOK COMMUNITY PRIMARY SCHOOL,131485
South Ribble Council,http://statistics.data.gov.uk/doc/local-authority/30UN,Neighbourhood Admin & Support,Materials General,4040,CHANNEL BRUSH - 2.8 mm POLY & 3.3mm WIRE 5 row 700/1000mm - MIDI SWEEPER - 78399/2,01/11/2019,0000450635,358.40,Revenue,NORTHERN MUNICIPAL SPARES LTD,00117061
South Ribble Council,http://statistics.data.gov.uk/doc/local-authority/30UN,Area 1 - Penwortham Western Parishes,Professional Fees,4514,DEPLOYMENT OF OFFICERS OCTOBER 2019,20/11/2019,0000450799,"1,603.86",Revenue,NSL LTD,00116868
South Ribble Council,http://statistics.data.gov.uk/doc/local-authority/30UN,Area 1 - Penwortham Western Parishes,Other Misc,4855,CASH COLLECTIONS AND RINGO TRANSACTIONS OCTOBER 2019,20/11/2019,0000450799,415.07,Revenue,NSL LTD,00116868
South Ribble Council,http://statistics.data.gov.uk/doc/local-authority/30UN,Area 1 - Penwortham Western Parishes,Other Misc,4855,RINGO CONVENIENCE CHARGE OCTOBER 2019,20/11/2019,0000450799,270.70,Revenue,NSL LTD,00116868
South Ribble Council,http://statistics.data.gov.uk/doc/local-authority/30UN,Area 1 - Penwortham Western Parishes,Professional Fees,4526,PRICE PER CONTRACTED ITEMISED COLLECTION - OTHER,20/11/2019,0000450799,40.62,Revenue,NSL LTD,00116868
South Ribble Council,http://statistics.data.gov.uk/doc/local-authority/30UN,Information Services,Peripherals,4247,"1yr Netilla Premium Licence Support for period 04/12/19 - 03/12/20, as per quote",20/11/2019,0000450981,"1,445.00",Revenue,NVIRON LTD,00028781
South Ribble Council,http://statistics.data.gov.uk/doc/local-authority/30UN,Housing,Cap Grant- Improve Grants,C570,DFG WORKS TO BATHROOM AT ADDRESS REDACTED AS PER QUOTE FOR SRBC PLAN- CUSTOMER TO PAY FOR THEIR PLANS,29/11/2019,0000451332,"12,426.61",Revenue,Ogs & Sons Ltd,132808
South Ribble Council,http://statistics.data.gov.uk/doc/local-authority/30UN,Development Enterprise & Comm Mgnt,Other Misc,485K,Start Your Own Business workshop for potential entrepreneurs unable to access current support Host 1 workshop - 500,01/11/2019,0000450629,500.00,Revenue,ORVIA ENTERPRISE LTD,130039
South Ribble Council,http://statistics.data.gov.uk/doc/local-authority/30UN,Democratic Services,Training Expense-Course Fees,1406,SAFEGUARDING TRAINING SESSIONS TO BE DELIVERED FOR MEMBERS ON 30 OCT AND  7 NOV,22/11/2019,0000451039,750.00,Revenue,P THRELFALL SAFEGUARDING LTD,130382
South Ribble Council,http://statistics.data.gov.uk/doc/local-authority/30UN,Healthy Communities,Cleaning and Domestic Supplies,2711,Cleaning stock sept 19,29/11/2019,0000450958,463.98,Revenue,Pattersons (Bristol) Ltd,132621
South Ribble Council,http://statistics.data.gov.uk/doc/local-authority/30UN,HR & Communications,Training Expense-Course Fees,1401,PAUL BLUNDELL TO PROVIDE MINDFULNESS TRAINING SESSIONS FOR 8 WEEKS UNTIL DECEMBER 2019,27/11/2019,0000451188,"1,250.00",Revenue,Paul Blundell,132321
South Ribble Council,http://statistics.data.gov.uk/doc/local-authority/30UN,Area 2 - Waste Transport/Eastern & Central Teams,Cap Vehicles,C440,"2 x Peugeot Compact Expert Blue HDi 100s S&S 6-speed manual 1000, optional extras of rear parking sensors & air conditioning only",27/11/2019,0000451133,"14,716.67",Revenue,Pentagon Corporate Fleet,132191
South Ribble Council,http://statistics.data.gov.uk/doc/local-authority/30UN,Area 2 - Waste Transport/Eastern & Central Teams,Cap Vehicles,C440,First Registration & RFL @ 315 per vehicle.,27/11/2019,0000451133,315.00,Revenue,Pentagon Corporate Fleet,132191
South Ribble Council,http://statistics.data.gov.uk/doc/local-authority/30UN,Area 2 - Waste Transport/Eastern & Central Teams,Cap Vehicles,C440,"2 x Peugeot Compact Expert Blue HDi 100s S&S 6-speed manual 1000, with optional extras of rear parking sensors & air conditioning only",27/11/2019,0000451134,"14,716.67",Revenue,Pentagon Corporate Fleet,132191
South Ribble Council,http://statistics.data.gov.uk/doc/local-authority/30UN,Area 2 - Waste Transport/Eastern & Central Teams,Cap Vehicles,C440,First Registration & RFL @ 315 per vehicle.,27/11/2019,0000451134,315.00,Revenue,Pentagon Corporate Fleet,132191
South Ribble Council,http://statistics.data.gov.uk/doc/local-authority/30UN,Area 2 - Waste Transport/Eastern & Central Teams,Cap Vehicles,C440,"1 x Peugeot Compact Expert Blue HDi 100s S&S 6-speed manual 1000, with optional extra of rear parking sensors only",27/11/2019,0000451135,"14,216.67",Revenue,Pentagon Corporate Fleet,132191
South Ribble Council,http://statistics.data.gov.uk/doc/local-authority/30UN,Area 2 - Waste Transport/Eastern & Central Teams,Cap Vehicles,C440,first reg fee,27/11/2019,0000451135,315.00,Revenue,Pentagon Corporate Fleet,132191
South Ribble Council,http://statistics.data.gov.uk/doc/local-authority/30UN,Area 2 - Waste Transport/Eastern & Central Teams,Materials General,4040,1200LT X TYPE 46 HYD OIL @ 0.74 PPL,08/11/2019,0000450681,783.66,Revenue,PILKINGTON OILS,00113531
South Ribble Council,http://statistics.data.gov.uk/doc/local-authority/30UN,Housing,Cap Grant- Improve Grants,C570,DFG WORKS TO BATHROOM ATADDRESS REDACTED PER QUOTE OF 3150.00 FOR SRBC PLANS- 50% PAID BY ACCENT HOUSING,29/11/2019,0000451292,"1,575.00",Revenue,Positive Plumbing Solutions Ltd,131562
South Ribble Council,http://statistics.data.gov.uk/doc/local-authority/30UN,Information Services,Stationery,4133," 40,000 sheets Evolution Everyday A4 80gm  5000 sheets Evolution Everyday A3 80gm 1000 sheets Premier Elements White A4 Card 200gsm",20/11/2019,0000450985,310.65,Revenue,PREMIER PAPER GROUP LTD,00022606
South Ribble Council,http://statistics.data.gov.uk/doc/local-authority/30UN,Information Services,Stationery,4133,"50,000 sheets Evolution Everyday A4 80gm",27/11/2019,0000451186,290.00,Revenue,PREMIER PAPER GROUP LTD,00022606
South Ribble Council,http://statistics.data.gov.uk/doc/local-authority/30UN,Area 2 - Waste Transport/Eastern & Central Teams,External Contractors Charges,4570,5 x Tyres + 4 Punctures - TR211 -,01/11/2019,0000450603,500.20,Revenue,PRESTON TYRE SPECIALISTS,00109516
South Ribble Council,http://statistics.data.gov.uk/doc/local-authority/30UN,Democratic Services,Other Misc,4423,"83,574 X POLL CARD POSTAGE (JOB NO 6492)",29/11/2019,0000451037,"25,057.87",Revenue,PRINT IMAGE FACILITIES LLP,130734
South Ribble Council,http://statistics.data.gov.uk/doc/local-authority/30UN,Democratic Services,Other Misc,4422,800 X POSTAL VOTING BALLOT PACKS - COUP GREEN AND GREGSON LANE BY-ELECTION - ORDER NUMBER: 6119,15/11/2019,0000450972,"1,479.00",Revenue,PRINT IMAGE NETWORK LTD,00089199
South Ribble Council,http://statistics.data.gov.uk/doc/local-authority/30UN,Democratic Services,Other Misc,4421,33 X POLLING STATION BALLOT BOOKS - COUPE GREEN AND GREGSON LANE BY-ELECTION - ORDER NUMBER: 6118,15/11/2019,0000450973,878.00,Revenue,PRINT IMAGE NETWORK LTD,00089199
South Ribble Council,http://statistics.data.gov.uk/doc/local-authority/30UN,Homelessness,Contributions,4730,Contribution to Clare House,08/11/2019,0000450828,"1,000.00",Revenue,PROGRESS HOUSING GRP ref:DNSOU001,00030135
South Ribble Council,http://statistics.data.gov.uk/doc/local-authority/30UN,Area 3 - Parks/Leyland East West,Grounds Maint Cntrctrs Chgs,4657,Please supply spare parts as per ref: 1907.23183.,01/11/2019,0000450662,"5,943.16",Revenue,PROLUDIC LTD,00083263
South Ribble Council,http://statistics.data.gov.uk/doc/local-authority/30UN,Area 3 - Parks/Leyland East West,Grounds Maint Cntrctrs Chgs,4657,Delivery,01/11/2019,0000450662,594.32,Revenue,PROLUDIC LTD,00083263
South Ribble Council,http://statistics.data.gov.uk/doc/local-authority/30UN,Property Services,Rep & Maint Premises,2020,Please do works as per quote LRS Q 2700 dated 1st October 2019  for NAME REDACTED - Remodelling works to Civic Centre Offices,22/11/2019,0000451129,812.00,Revenue,PSR & Sons Joiners & Building Contractors,132887
South Ribble Council,http://statistics.data.gov.uk/doc/local-authority/30UN,Property Services,Rep & Maint Premises,2020,materials,22/11/2019,0000451129,"3,000.00",Revenue,PSR & Sons Joiners & Building Contractors,132887
South Ribble Council,http://statistics.data.gov.uk/doc/local-authority/30UN,Property Services,Rep & Maint Premises,2020,Please undertake works to the stairwells at the civic centre as per quotation Q2720,22/11/2019,0000451137,130.00,Revenue,PSR & Sons Joiners & Building Contractors,132887
South Ribble Council,http://statistics.data.gov.uk/doc/local-authority/30UN,Property Services,Rep & Maint Premises,2020,materials,22/11/2019,0000451137,300.00,Revenue,PSR & Sons Joiners & Building Contractors,132887
South Ribble Council,http://statistics.data.gov.uk/doc/local-authority/30UN,Property Services,Rep & Maint Premises,2020,Please install & paint new door and casing to unit 2 Forward industrial estate as per quotation Q 2733,22/11/2019,0000451139,180.00,Revenue,PSR & Sons Joiners & Building Contractors,132887
South Ribble Council,http://statistics.data.gov.uk/doc/local-authority/30UN,Property Services,Rep & Maint Premises,2020,materials,22/11/2019,0000451139,740.00,Revenue,PSR & Sons Joiners & Building Contractors,132887
South Ribble Council,http://statistics.data.gov.uk/doc/local-authority/30UN,Property Services,Professional Fees,4510,Presentation Boards in connection with Worden Hall,29/11/2019,0000451100,700.00,Revenue,Purcell Architecture Limited,132602
South Ribble Council,http://statistics.data.gov.uk/doc/local-authority/30UN,Neighbourhood Admin & Support,External Contractors Charges,4570,INSPECTION OF ST MARYS GRAVEYARD MEMORIALS,20/11/2019,0000450442,950.00,Revenue,Rawcliffes of Chorley Ltd,132935
South Ribble Council,http://statistics.data.gov.uk/doc/local-authority/30UN,Property Services,Rep & Maint Premises,2020,Please provide a large skip to be dropped off and picked up at the Civic Centre on 4th October,15/11/2019,0000450484,950.00,Revenue,RED ROSE BUILDING MAINTENANCE,00085410
South Ribble Council,http://statistics.data.gov.uk/doc/local-authority/30UN,Property Services,Rep & Maint Premises,2020,Take down all the brick pillars and metal railings on the wall at the front of the centre. To construct a concrete ramp at the side of the centre,08/11/2019,0000450762,"2,000.00",Revenue,RED ROSE BUILDING MAINTENANCE,00085410
South Ribble Council,http://statistics.data.gov.uk/doc/local-authority/30UN,Property Services,Rep & Maint Premises,2020,materials,08/11/2019,0000450762,"4,700.00",Revenue,RED ROSE BUILDING MAINTENANCE,00085410
South Ribble Council,http://statistics.data.gov.uk/doc/local-authority/30UN,Property Services,Rep & Maint Premises,2020,"To install a new drain outside ADDRESS REDACTED, pick up the original downspout drain and run a new drain to the surface water gulley.",22/11/2019,0000451010,"1,200.00",Revenue,RED ROSE BUILDING MAINTENANCE,00085410
South Ribble Council,http://statistics.data.gov.uk/doc/local-authority/30UN,Property Services,Rep & Maint Premises,2020,materials,22/11/2019,0000451010,"1,000.00",Revenue,RED ROSE BUILDING MAINTENANCE,00085410
South Ribble Council,http://statistics.data.gov.uk/doc/local-authority/30UN,Property Services,Rep & Maint Premises,2020,Please attend Leyland Leisure centre and repair unsafe rocking flags as per NAME REDACTED,29/11/2019,0000451265,240.00,Revenue,RED ROSE BUILDING MAINTENANCE,00085410
South Ribble Council,http://statistics.data.gov.uk/doc/local-authority/30UN,Property Services,Rep & Maint Premises,2020,materials,29/11/2019,0000451265,25.00,Revenue,RED ROSE BUILDING MAINTENANCE,00085410
South Ribble Council,http://statistics.data.gov.uk/doc/local-authority/30UN,Property Services,Rep & Maint Premises,2020,"Please attend 14A, 14B, and 14C Boxer Place and rebuild wall that has fallen down  on the corner - as instructed by NAME REDACTED",29/11/2019,0000451271,240.00,Revenue,RED ROSE BUILDING MAINTENANCE,00085410
South Ribble Council,http://statistics.data.gov.uk/doc/local-authority/30UN,Property Services,Rep & Maint Premises,2020,materials,29/11/2019,0000451271,150.00,Revenue,RED ROSE BUILDING MAINTENANCE,00085410
South Ribble Council,http://statistics.data.gov.uk/doc/local-authority/30UN,Homelessness,Contributions,4730,Agreed rent payment for NAME REDACTED Placement at the Courtyard 47 nights at 30pn,22/11/2019,0000451078,"1,410.00",Revenue,REDDY & CO,00108177
South Ribble Council,http://statistics.data.gov.uk/doc/local-authority/30UN,Area 2 - Waste Transport/Eastern & Central Teams,External Contractors Charges,4570,Overhaul Packer Ram PJ62 UCG JFC13613,22/11/2019,0000451106,287.00,Revenue,Redgold Hydraulics (Standish) Ltd,132864
South Ribble Council,http://statistics.data.gov.uk/doc/local-authority/30UN,Homelessness,Contributions,4730,rent & bond,22/11/2019,0000450943,"1,000.00",Revenue,Reeds Rains Leyland,132800
South Ribble Council,http://statistics.data.gov.uk/doc/local-authority/30UN,Information Services,Lease Rental Charges,4036,,20/11/2019,0000451029,"4,638.79",Revenue,RICOH (UK) LTD,00082976
South Ribble Council,http://statistics.data.gov.uk/doc/local-authority/30UN,Information Services,Stationery,413A,,20/11/2019,0000451029,"6,140.84",Revenue,RICOH (UK) LTD,00082976
South Ribble Council,http://statistics.data.gov.uk/doc/local-authority/30UN,Information Services,Lease Rental Charges,4036,,20/11/2019,0000451030,"1,492.80",Revenue,RICOH (UK) LTD,00082976
South Ribble Council,http://statistics.data.gov.uk/doc/local-authority/30UN,Information Services,Lease Rental Charges,4036,1/11/19 to 31/1/20,20/11/2019,0000451031,334.19,Revenue,RICOH (UK) LTD,00082976
South Ribble Council,http://statistics.data.gov.uk/doc/local-authority/30UN,Information Services,Stationery,413A,1/8/19 to 31/10/19,20/11/2019,0000451031,491.17,Revenue,RICOH (UK) LTD,00082976
South Ribble Council,http://statistics.data.gov.uk/doc/local-authority/30UN,Healthy Communities,Sports Dev Expenses,4894,Bikeability Training at Various Schools during  September / October 2019 Total Cost - 675.00,01/11/2019,0000450492,720.00,Revenue,RiderEvolution Ltd,132954
South Ribble Council,http://statistics.data.gov.uk/doc/local-authority/30UN,Area 1 - Penwortham Western Parishes,Operational Furniture & Equip,4010,2 X FLAMBANK FBC 5 CHEMICAL SAFER CHESTS @ 850.00 EACH + 10.00 EACH CARRIAGE,20/11/2019,0000450909,850.00,Revenue,RIGBY TAYLOR LTD,00033145
South Ribble Council,http://statistics.data.gov.uk/doc/local-authority/30UN,Area 1 - Penwortham Western Parishes,Operational Furniture & Equip,4010,2 X FLAMBANK FBC 5 CHEMICAL SAFER CHESTS @ 850.00 EACH + 10.00 EACH CARRIAGE,20/11/2019,0000450909,850.00,Revenue,RIGBY TAYLOR LTD,00033145
South Ribble Council,http://statistics.data.gov.uk/doc/local-authority/30UN,Area 1 - Penwortham Western Parishes,Operational Furniture & Equip,4010,direct charge,20/11/2019,0000450909,10.00,Revenue,RIGBY TAYLOR LTD,00033145
South Ribble Council,http://statistics.data.gov.uk/doc/local-authority/30UN,Democratic Services,Other Misc,4422,,15/11/2019,0000450923,"1,002.73",Revenue,ROYAL MAIL GROUP PLC,00033543
South Ribble Council,http://statistics.data.gov.uk/doc/local-authority/30UN,Democratic Services,Postage,4291,Postage Costs (Non-Election),22/11/2019,0000450991,934.27,Revenue,ROYAL MAIL GROUP PLC,00033543
South Ribble Council,http://statistics.data.gov.uk/doc/local-authority/30UN,Information Services,Postage,4295,,20/11/2019,0000451018,413.45,Revenue,ROYAL MAIL GROUP PLC,00033543
South Ribble Council,http://statistics.data.gov.uk/doc/local-authority/30UN,Information Services,Postage,4295,,20/11/2019,0000451018,-15.00,Revenue,ROYAL MAIL GROUP PLC,00033543
South Ribble Council,http://statistics.data.gov.uk/doc/local-authority/30UN,Democratic Services,Other Misc,4422,POSTAGE- OUTWARD POSTAL VOTES,27/11/2019,0000451178,324.55,Revenue,ROYAL MAIL GROUP PLC,00033543
South Ribble Council,http://statistics.data.gov.uk/doc/local-authority/30UN,Planning,Consultancy Fees,4541,Consultation`s for application 07/2019/1763/FUL,08/11/2019,0000450761,410.00,Revenue,RSK ADAS Ltd,132221
South Ribble Council,http://statistics.data.gov.uk/doc/local-authority/30UN,Area 2 - Waste Transport/Eastern & Central Teams,Materials General,4040,2 PORTABLE OIL DISPENSERS,01/11/2019,0000450618,312.72,Revenue,S & R GARAGE EQUIPMENT,130892
South Ribble Council,http://statistics.data.gov.uk/doc/local-authority/30UN,Area 2 - Waste Transport/Eastern & Central Teams,Materials General,4040,1 x 1000 litres Energize - Premium Hi-Foaming TFR with Wax (Super Conc),15/11/2019,0000450885,911.15,Revenue,Saanro International Ltd,132788
South Ribble Council,http://statistics.data.gov.uk/doc/local-authority/30UN,Property Services,Professional Fees,4510,"The management of the asset management portfolio, McKenzie arms business case and review of the asset portfolio.",06/11/2019,0000450236,"9,200.00",Revenue,Sanderson Weatherall LLP,132534
South Ribble Council,http://statistics.data.gov.uk/doc/local-authority/30UN,Property Services,Professional Fees,4510,Professional services in connection with the proposed CPO of ADDRESS REDACTED,29/11/2019,0000451034,"2,000.00",Revenue,Sanderson Weatherall LLP,132534
South Ribble Council,http://statistics.data.gov.uk/doc/local-authority/30UN,Property Services,Balance Sheet,0030,Provision of services in relation to the Leyland Test track.,20/11/2019,0000451038,"1,524.15",Revenue,Sanderson Weatherall LLP,132534
South Ribble Council,http://statistics.data.gov.uk/doc/local-authority/30UN,Property Services,Energy Costs,2304,31/3/19 to 26/1/19,27/11/2019,0000451001,481.14,Revenue,SCOTTISH HYDRO ELECTRIC,130051
South Ribble Council,http://statistics.data.gov.uk/doc/local-authority/30UN,Property Services,Energy Costs,2304,27/6/19 to 25/9/19,27/11/2019,0000451002,336.11,Revenue,SCOTTISH HYDRO ELECTRIC,130051
South Ribble Council,http://statistics.data.gov.uk/doc/local-authority/30UN,Property Services,Energy Costs,2304,30/8/19 to 1/10/19,27/11/2019,0000451004,301.22,Revenue,SCOTTISH HYDRO ELECTRIC,130051
South Ribble Council,http://statistics.data.gov.uk/doc/local-authority/30UN,Property Services,Energy Costs,2307,CCL,27/11/2019,0000451004,38.57,Revenue,SCOTTISH HYDRO ELECTRIC,130051
South Ribble Council,http://statistics.data.gov.uk/doc/local-authority/30UN,Property Services,Energy Costs,2304,14/8/19 to 8/11/19,27/11/2019,0000451005,392.74,Revenue,SCOTTISH HYDRO ELECTRIC,130051
South Ribble Council,http://statistics.data.gov.uk/doc/local-authority/30UN,Property Services,Energy Costs,2303,14/8/19 to 8/11/19,27/11/2019,0000451113,"3,153.47",Revenue,SCOTTISH HYDRO ELECTRIC,130051
South Ribble Council,http://statistics.data.gov.uk/doc/local-authority/30UN,Property Services,Energy Costs,2307,CCL,27/11/2019,0000451113,206.49,Revenue,SCOTTISH HYDRO ELECTRIC,130051
South Ribble Council,http://statistics.data.gov.uk/doc/local-authority/30UN,Property Services,Energy Costs,2303,5/3/19 to 29/5/19,27/11/2019,0000451124,456.93,Revenue,SCOTTISH HYDRO ELECTRIC,130051
South Ribble Council,http://statistics.data.gov.uk/doc/local-authority/30UN,Property Services,Energy Costs,2307,CCL,27/11/2019,0000451124,29.22,Revenue,SCOTTISH HYDRO ELECTRIC,130051
South Ribble Council,http://statistics.data.gov.uk/doc/local-authority/30UN,Property Services,Energy Costs,2303,2/7/19 to 1/10/19,27/11/2019,0000451150,266.62,Revenue,SCOTTISH HYDRO ELECTRIC,130051
South Ribble Council,http://statistics.data.gov.uk/doc/local-authority/30UN,Property Services,Energy Costs,2303,30/5/19 to 31/8/19,27/11/2019,0000451151,498.17,Revenue,SCOTTISH HYDRO ELECTRIC,130051
South Ribble Council,http://statistics.data.gov.uk/doc/local-authority/30UN,Property Services,Energy Costs,2307,CCL,27/11/2019,0000451151,37.10,Revenue,SCOTTISH HYDRO ELECTRIC,130051
South Ribble Council,http://statistics.data.gov.uk/doc/local-authority/30UN,Property Services,Energy Costs,2303,14/8/19 to 8/11/19,27/11/2019,0000451160,"1,142.49",Revenue,SCOTTISH HYDRO ELECTRIC,130051
South Ribble Council,http://statistics.data.gov.uk/doc/local-authority/30UN,Property Services,Energy Costs,2307,CCL,27/11/2019,0000451160,76.94,Revenue,SCOTTISH HYDRO ELECTRIC,130051
South Ribble Council,http://statistics.data.gov.uk/doc/local-authority/30UN,Democratic Services,Other Misc,4421,75 RECYCLABLE BLACK PRESIDING OFFICER PARLIAMENTARY SUNDRIES WALLETS AND PENCIL CASES (REFILL PACKS),29/11/2019,0000451278,"1,267.50",Revenue,SHAW & SONS LTD,00034542
South Ribble Council,http://statistics.data.gov.uk/doc/local-authority/30UN,Information Services,Professional Fees,4520,Shredding of Confidential Waste 2019/20,13/11/2019,0000450790,253.26,Revenue,SHRED-IT LTD,00109134
South Ribble Council,http://statistics.data.gov.uk/doc/local-authority/30UN,HR & Communications,Professional Fees,4513,PROFESSIONAL ADVICE/ASSISTANCE IN RELATION TO EXECUTION OF SETTLEMENT AGREEMENT FOR NAME REDACTED,20/11/2019,0000451074,360.00,Revenue,SIMPSON MILLAR,132955
South Ribble Council,http://statistics.data.gov.uk/doc/local-authority/30UN,HR & Communications,Professional Fees,4513,PROFESSIONAL ADVICE/ASSISTANCE IN RELATION TO EXECUTION OF SETTLEMENT AGREEMENT FOR NAME REDACTED,20/11/2019,0000451075,360.00,Revenue,SIMPSON MILLAR,132955
South Ribble Council,http://statistics.data.gov.uk/doc/local-authority/30UN,Property Services,Professional Fees,4510,Please attend Worden Hall as arranged with the facilities officer to undertake cleaning work,22/11/2019,0000450841,480.00,Revenue,SMJ CONTRACT CLEANING,130044
South Ribble Council,http://statistics.data.gov.uk/doc/local-authority/30UN,HR & Communications,Payroll Suspense,1731,PLEASE PROVIDE 250 OF VOUCHER SHOP VOUCHERS - NAME REDACTED,15/11/2019,0000450755,250.00,Revenue,Sodexo T/A THE VOUCHER SHOP,130951
South Ribble Council,http://statistics.data.gov.uk/doc/local-authority/30UN,HR & Communications,Payroll Suspense,1731,postage,15/11/2019,0000450755,7.00,Revenue,Sodexo T/A THE VOUCHER SHOP,130951
South Ribble Council,http://statistics.data.gov.uk/doc/local-authority/30UN,Information Services,Peripherals,4247,"100 x Symantec Messaging Gateway Subscription Licence with Support for period 22/11/19 - 21/11/20, as per quote no. 503639",08/11/2019,0000450791,735.00,Revenue,SOFTWARE RENEWAL CENTRE,00112189
South Ribble Council,http://statistics.data.gov.uk/doc/local-authority/30UN,Democratic Services,Other Misc,4424,elections,29/11/2019,0000451196,"1,794.10",Revenue,SOUTH RIBBLE COMMUNITY LEISURE LTD,00094210
South Ribble Council,http://statistics.data.gov.uk/doc/local-authority/30UN,Democratic Services,Other Misc,4424,tax items,29/11/2019,0000451196,200.00,Revenue,SOUTH RIBBLE COMMUNITY LEISURE LTD,00094210
South Ribble Council,http://statistics.data.gov.uk/doc/local-authority/30UN,Shared Financial Services,Balance Sheet,0030,monthly deductions from payroll,06/11/2019,0000450683,"1,721.69",Revenue,SOUTH RIBBLE LABOUR PARTY LOCAL GOVERNM,00120663
South Ribble Council,http://statistics.data.gov.uk/doc/local-authority/30UN,Environmental Health,Contributions,4730,funds,29/11/2019,0000451179,300.00,Revenue,SOUTH RIBBLE PUB WATCH,132988
South Ribble Council,http://statistics.data.gov.uk/doc/local-authority/30UN,Property Services,Capital Expenditure,C230,Provision of South Ribble Leisure Centre core scheme,27/11/2019,0000451176,"1,000.00",Revenue,SPACE & PLACE (AFLSP LTD),132403
South Ribble Council,http://statistics.data.gov.uk/doc/local-authority/30UN,Area 2 - Waste Transport/Eastern & Central Teams,Materials General,4040,54 X CYLINDER BEARING BIN 1138,29/11/2019,0000451283,262.35,Revenue,SPALDINGS,00070849
South Ribble Council,http://statistics.data.gov.uk/doc/local-authority/30UN,Shared Financial Services,Balance Sheet,0030,monthly ded from payroll,06/11/2019,0000450684,403.62,Revenue,ST CATHERINES HOSPICE PROMOTIONS LTD,00057749
South Ribble Council,http://statistics.data.gov.uk/doc/local-authority/30UN,Neighbourhood Admin & Support,Materials General,4040, BLACK SACKS `KEEP SOUTH RIBBLE TIDY` in white - 455 x 735 x 865mm M1A1,13/11/2019,0000450877,"1,477.13",Revenue,Stevenage Packaging Ltd,132780
South Ribble Council,http://statistics.data.gov.uk/doc/local-authority/30UN,Neighbourhood Admin & Support,Materials General,4040, BLACK SACKS `KEEP SOUTH RIBBLE TIDY` in white - 455 x 735 x 865mm M1A1,29/11/2019,0000451317,"1,362.24",Revenue,Stevenage Packaging Ltd,132780
South Ribble Council,http://statistics.data.gov.uk/doc/local-authority/30UN,Area 3 - Parks/Leyland East West,Grounds Maint Cntrctrs Chgs,4657,1x 2m Rope Bridge as per quotation CG090919,06/11/2019,0000450507,312.77,Revenue,SUTCLIFFE PLAY LTD,00034953
South Ribble Council,http://statistics.data.gov.uk/doc/local-authority/30UN,Area 3 - Parks/Leyland East West,Grounds Maint Cntrctrs Chgs,4657,Carriage,06/11/2019,0000450507,31.28,Revenue,SUTCLIFFE PLAY LTD,00034953
South Ribble Council,http://statistics.data.gov.uk/doc/local-authority/30UN,Area 3 - Parks/Leyland East West,Grounds Maint Cntrctrs Chgs,4657,100x T25002B Teen Zone Plastic Cover Black @ 2.65,22/11/2019,0000450816,265.00,Revenue,SUTCLIFFE PLAY LTD,00034953
South Ribble Council,http://statistics.data.gov.uk/doc/local-authority/30UN,Area 3 - Parks/Leyland East West,Grounds Maint Cntrctrs Chgs,4657,200x TZS007B Plastic Bolt Covers Black @ 0.03,22/11/2019,0000450816,6.00,Revenue,SUTCLIFFE PLAY LTD,00034953
South Ribble Council,http://statistics.data.gov.uk/doc/local-authority/30UN,Area 3 - Parks/Leyland East West,Grounds Maint Cntrctrs Chgs,4657,Carriage,22/11/2019,0000450816,27.10,Revenue,SUTCLIFFE PLAY LTD,00034953
South Ribble Council,http://statistics.data.gov.uk/doc/local-authority/30UN,Area 1 - Penwortham Western Parishes,External Contractors Charges,4570,Cat C Driving Tuition for NAME REDACTED,08/11/2019,0000450721,150.00,Revenue,T WALKER HGV,132933
South Ribble Council,http://statistics.data.gov.uk/doc/local-authority/30UN,Area 1 - Penwortham Western Parishes,External Contractors Charges,4570,Vehicle hire on Test,08/11/2019,0000450721,250.00,Revenue,T WALKER HGV,132933
South Ribble Council,http://statistics.data.gov.uk/doc/local-authority/30UN,Area 1 - Penwortham Western Parishes,External Contractors Charges,4570,Driving Test Fee,08/11/2019,0000450721,115.00,Revenue,T WALKER HGV,132933
South Ribble Council,http://statistics.data.gov.uk/doc/local-authority/30UN,Area 2 - Waste Transport/Eastern & Central Teams,Materials General,4040,SENSOR TEL2277,15/11/2019,0000450876,256.51,Revenue,Taylor Enginering & Fabrications Ltd,132560
South Ribble Council,http://statistics.data.gov.uk/doc/local-authority/30UN,Information Services,Peripherals,4246,Retainer for Services for 4 days per month for 6 months @ 650 per day,06/11/2019,0000450689,"2,600.00",Revenue,TechAlign,132535
South Ribble Council,http://statistics.data.gov.uk/doc/local-authority/30UN,Regeneration,Professional Fees,4510,Maintenance of bee hives at Carr Wood - this order is to cover until March 2020,01/11/2019,0000450623,450.00,Revenue,The Bee centre,132104
South Ribble Council,http://statistics.data.gov.uk/doc/local-authority/30UN,Regeneration,Professional Fees,4510,Maintenance of bee hives at Carr Wood - this order is to cover until March 2020,06/11/2019,0000450704,450.00,Revenue,The Bee centre,132104
South Ribble Council,http://statistics.data.gov.uk/doc/local-authority/30UN,Regeneration,Professional Fees,4510,Maintenance of bee hives at Carr Wood - this order is to cover until March 2020,06/11/2019,0000450725,450.00,Revenue,The Bee centre,132104
South Ribble Council,http://statistics.data.gov.uk/doc/local-authority/30UN,Regeneration,Professional Fees,4510,Maintenance of bee hives at Carr Wood - this order is to cover until March 2020,06/11/2019,0000450730,450.00,Revenue,The Bee centre,132104
South Ribble Council,http://statistics.data.gov.uk/doc/local-authority/30UN,Legal,Publications,4142,ALDRIDGE R64,08/11/2019,0000450792,528.00,Revenue,THOMSON REUTERS,00034979
South Ribble Council,http://statistics.data.gov.uk/doc/local-authority/30UN,Area 3 - Parks/Leyland East West,Grounds Maint Cntrctrs Chgs,4657,3x 0.9997 Rocking Beams including screws @ 163.71 each.,08/11/2019,0000450175,491.13,Revenue,TIMBERPLAY LTD,00055440
South Ribble Council,http://statistics.data.gov.uk/doc/local-authority/30UN,Area 3 - Parks/Leyland East West,Grounds Maint Cntrctrs Chgs,4657,Delivery,08/11/2019,0000450175,49.00,Revenue,TIMBERPLAY LTD,00055440
South Ribble Council,http://statistics.data.gov.uk/doc/local-authority/30UN,Area 3 - Parks/Leyland East West,Grounds Maint Cntrctrs Chgs,4657,1x 5.05200 - Sand Crane Turntable for attachment c/w Chain & Bucket,08/11/2019,0000450824,"2,167.50",Revenue,TIMBERPLAY LTD,00055440
South Ribble Council,http://statistics.data.gov.uk/doc/local-authority/30UN,Area 3 - Parks/Leyland East West,Grounds Maint Cntrctrs Chgs,4657,Delivery,08/11/2019,0000450824,216.00,Revenue,TIMBERPLAY LTD,00055440
South Ribble Council,http://statistics.data.gov.uk/doc/local-authority/30UN,Regeneration,Rep & Maint Premises,2020,New doorway and moving of cables within cabinet office,22/11/2019,0000450600,298.00,Revenue,TIS Networks,132417
South Ribble Council,http://statistics.data.gov.uk/doc/local-authority/30UN,Property Services,Energy Costs,2303,1/10/19 to 31/10/19,20/11/2019,0000451041,"1,359.92",Revenue,Total Gas & power Ltd,132995
South Ribble Council,http://statistics.data.gov.uk/doc/local-authority/30UN,Property Services,Energy Costs,2307,CCL,20/11/2019,0000451041,68.20,Revenue,Total Gas & power Ltd,132995
South Ribble Council,http://statistics.data.gov.uk/doc/local-authority/30UN,Property Services,Energy Costs,2304,1/10/19 to 29/,27/11/2019,0000451201,601.52,Revenue,Total Gas & power Ltd,132995
South Ribble Council,http://statistics.data.gov.uk/doc/local-authority/30UN,Property Services,Energy Costs,2307,CCL,27/11/2019,0000451201,52.42,Revenue,Total Gas & power Ltd,132995
South Ribble Council,http://statistics.data.gov.uk/doc/local-authority/30UN,Property Services,Energy Costs,2304,1/10/19 to 23/10/19,29/11/2019,0000451310,801.80,Revenue,Total Gas & power Ltd,132995
South Ribble Council,http://statistics.data.gov.uk/doc/local-authority/30UN,Property Services,Energy Costs,2307,CCL,29/11/2019,0000451310,76.18,Revenue,Total Gas & power Ltd,132995
South Ribble Council,http://statistics.data.gov.uk/doc/local-authority/30UN,Property Services,Energy Costs,2303,1/10/19 to 31/10/19,29/11/2019,0000451313,"2,565.74",Revenue,Total Gas & power Ltd,132995
South Ribble Council,http://statistics.data.gov.uk/doc/local-authority/30UN,Property Services,Energy Costs,2307,CCL,29/11/2019,0000451313,150.89,Revenue,Total Gas & power Ltd,132995
South Ribble Council,http://statistics.data.gov.uk/doc/local-authority/30UN,Property Services,Energy Costs,2303,1/10/19 to 31/10/19,29/11/2019,0000451314,"4,396.87",Revenue,Total Gas & power Ltd,132995
South Ribble Council,http://statistics.data.gov.uk/doc/local-authority/30UN,Property Services,Energy Costs,2307,CCL,29/11/2019,0000451314,247.17,Revenue,Total Gas & power Ltd,132995
South Ribble Council,http://statistics.data.gov.uk/doc/local-authority/30UN,Housing,Cap Expend Other,C750,"SUPPLY AND INSTALL UPVC DOUBLE GLAZING AS PER TENDER SPECIFICATION FOR 2019 /20 COST 50,000.00",01/11/2019,0000450369,"1,179.35",Revenue,TRADE WINDOWS & CONSERVATORIES,00119823
South Ribble Council,http://statistics.data.gov.uk/doc/local-authority/30UN,Planning,Professional Fees,4510,Professional services provided in relation to Leyland Test Track.,22/11/2019,0000451103,"7,500.00",Revenue,Trebbi Continuum Limited,132970
South Ribble Council,http://statistics.data.gov.uk/doc/local-authority/30UN,Environmental Health,Consultancy Fees,4542,Water Samples for 2018/2019.,29/11/2019,0000451289,281.36,Revenue,UNITED UTILITIES WATER PLC,130293
South Ribble Council,http://statistics.data.gov.uk/doc/local-authority/30UN,Property Services,External Contractors Charges,4575,To supply buffet @7 per head on 11th September 2019 for 20 @ 16.30 to SRBC - prev req cancelled,08/11/2019,0000450691,140.00,Revenue,UNIVERSITY OF CENTRAL LANCASHIRE,131183
South Ribble Council,http://statistics.data.gov.uk/doc/local-authority/30UN,Property Services,External Contractors Charges,4575,To supply buffet @ 7 per head for 15 on 2nd September 2019 @ 16.30 to SRBC,08/11/2019,0000450691,105.00,Revenue,UNIVERSITY OF CENTRAL LANCASHIRE,131183
South Ribble Council,http://statistics.data.gov.uk/doc/local-authority/30UN,Property Services,External Contractors Charges,4575,To supply Hot meals/sweets @ 9.50 per head for 55 on 25th September 2019 @ 16.30 to SRBC,08/11/2019,0000450691,522.50,Revenue,UNIVERSITY OF CENTRAL LANCASHIRE,131183
South Ribble Council,http://statistics.data.gov.uk/doc/local-authority/30UN,Property Services,External Contractors Charges,4575,To supply Hot meals incl veggie options & sweet @ 9.50 per head for 20 @ 16.30 on 18th September 2019 to SREBC,08/11/2019,0000450691,160.00,Revenue,UNIVERSITY OF CENTRAL LANCASHIRE,131183
South Ribble Council,http://statistics.data.gov.uk/doc/local-authority/30UN,Property Services,External Contractors Charges,4575,To supply buffet @ 7 per head for 15 on 10th September 2019 @ 16.30 to SRBC,08/11/2019,0000450691,105.00,Revenue,UNIVERSITY OF CENTRAL LANCASHIRE,131183
South Ribble Council,http://statistics.data.gov.uk/doc/local-authority/30UN,Regeneration,External Contractors Charges,4575,To supply buffet @ 7 per head for 15 on 3rd October 2019 at 16.30 to SRBC,22/11/2019,0000450843,105.00,Revenue,UNIVERSITY OF CENTRAL LANCASHIRE,131183
South Ribble Council,http://statistics.data.gov.uk/doc/local-authority/30UN,Regeneration,External Contractors Charges,4575,To supply buffet @ 7 per head for 20 on 16th October 2019 at 16.30 to SRBC,22/11/2019,0000450843,140.00,Revenue,UNIVERSITY OF CENTRAL LANCASHIRE,131183
South Ribble Council,http://statistics.data.gov.uk/doc/local-authority/30UN,Regeneration,Other Misc,4851,"Supplier of 100 cakes (millionaires shortbread, rocky road, carrot cake flapjack etc) at 1.50 per person. For presentation on 17/10/19, Leyland",22/11/2019,0000450843,150.00,Revenue,UNIVERSITY OF CENTRAL LANCASHIRE,131183
South Ribble Council,http://statistics.data.gov.uk/doc/local-authority/30UN,Regeneration,External Contractors Charges,4575,To supply hot meals @ 9.50 per head for 20 on 23rd October 2019 @ 16.30 to SRBC,22/11/2019,0000450843,190.00,Revenue,UNIVERSITY OF CENTRAL LANCASHIRE,131183
South Ribble Council,http://statistics.data.gov.uk/doc/local-authority/30UN,Regeneration,Other Misc,4851,Catering for Health Referral Pathways Workshop,22/11/2019,0000450843,140.00,Revenue,UNIVERSITY OF CENTRAL LANCASHIRE,131183
South Ribble Council,http://statistics.data.gov.uk/doc/local-authority/30UN,Neighbourhood Admin & Support,Materials General,4046,"1,100 Native Bluebells (Hyacinthoides non scripts) @11 each",20/11/2019,0000450896,121.00,Revenue,Vans Dutch Bulbs Company Ltd,132983
South Ribble Council,http://statistics.data.gov.uk/doc/local-authority/30UN,Neighbourhood Admin & Support,Materials General,4046,200 Cyclamen Coum @ 60p each,20/11/2019,0000450896,120.00,Revenue,Vans Dutch Bulbs Company Ltd,132983
South Ribble Council,http://statistics.data.gov.uk/doc/local-authority/30UN,Neighbourhood Admin & Support,Materials General,4046,200 Lily of the Valley @ 17p each,20/11/2019,0000450896,34.00,Revenue,Vans Dutch Bulbs Company Ltd,132983
South Ribble Council,http://statistics.data.gov.uk/doc/local-authority/30UN,Property Services,Rep & Maint Premises,2020,"2019 / 2020 annual contract for quarterly servicing of 7No water coolers located at the Civic Centre, PR25 1DH",08/11/2019,0000450044,812.09,Revenue,VENDING ENTERPRISES,00101501
South Ribble Council,http://statistics.data.gov.uk/doc/local-authority/30UN,Property Services,Rep & Maint Premises,2020,"2019 / 2020 annual contract for quarterly servicing of 7No water coolers located at the Civic Centre, PR25 1DH",08/11/2019,0000450630,322.09,Revenue,VENDING ENTERPRISES,00101501
South Ribble Council,http://statistics.data.gov.uk/doc/local-authority/30UN,Democratic Services,Other Expenses,463A,PROVIDE MARSHALS AND TRAFFIC CONTROL ON SUNDAY 10/11/19. DETAILS TO BE DISCUSSED AT OUR MEETING ON 5/9/19,15/11/2019,0000450974,"2,010.00",Revenue,VENTBROOK LTD,131218
South Ribble Council,http://statistics.data.gov.uk/doc/local-authority/30UN,Information Services,Peripherals,4269,26 NOV 2019,29/11/2019,0000451324,680.79,Revenue,VODAFONE RE:CABLE & WIRELESS UK,130810
South Ribble Council,http://statistics.data.gov.uk/doc/local-authority/30UN,Regeneration,Other Misc,4861,contribution,15/11/2019,0000450950,300.00,Revenue,Wade Hall Community Association,132844
South Ribble Council,http://statistics.data.gov.uk/doc/local-authority/30UN,Neighbourhood Admin & Support,Capital Expenditure,C230,"Desks, drawers, screens and canteen tables. As per your quotation PS/566 dated 3.4.19",06/11/2019,0000447510,"4,028.00",Revenue,WAGSTAFF GROUP,00072847
South Ribble Council,http://statistics.data.gov.uk/doc/local-authority/30UN,Area 3 - Parks/Leyland East West,Materials General,4046,Spring bedding plants and bulbs as per attached list. For delivery w/c 7/10/19 Contact NAME REDACTED to arrange delivery,01/11/2019,0000450565,"2,469.00",Revenue,Walkers Oakfield Nurseries,131380
South Ribble Council,http://statistics.data.gov.uk/doc/local-authority/30UN,Area 3 - Parks/Leyland East West,Capital Expenditure,C230,"SERVICES CONSULTANCY FOR HURST GRANGE PARK COACH HOUSE, PENWORTHAM",29/11/2019,0000451213,508.50,Revenue,WALMSLEY ASSOCIATES,00115636
South Ribble Council,http://statistics.data.gov.uk/doc/local-authority/30UN,Area 3 - Parks/Leyland East West,Capital Expenditure,C230,"SERVICES CONSULTANCY FOR HURST GRANGE PARK COACH HOUSE, PENWORTHAM",29/11/2019,0000451227,"2,881.50",Revenue,WALMSLEY ASSOCIATES,00115636
South Ribble Council,http://statistics.data.gov.uk/doc/local-authority/30UN,Property Services,Water Charges,2511,2/8/19 to 26/10/19,08/11/2019,0000450712,"2,147.93",Revenue,WATER PLUS,00029845
South Ribble Council,http://statistics.data.gov.uk/doc/local-authority/30UN,Property Services,Water Charges,2511,27/8/19 to 6/11/19,20/11/2019,0000450997,568.16,Revenue,WATER PLUS,00029845
South Ribble Council,http://statistics.data.gov.uk/doc/local-authority/30UN,Regeneration,Capital Expenditure,C230,Leyland Loop tree works,20/11/2019,0000450599,"3,920.00",Revenue,WESTFIELD TREE SERVICES LTD,00114226
South Ribble Council,http://statistics.data.gov.uk/doc/local-authority/30UN,Area 3 - Parks/Leyland East West,Grounds Maint Cntrctrs Chgs,4657,"Fixings for 2x Springies & Rock `n` Bowl, below ground fixings, Socket Cap Head Screw, M12 Washer, Rock `n` Bowl below ground",08/11/2019,0000450797,401.41,Revenue,WICKSTEED LEISURE LTD,00038661
South Ribble Council,http://statistics.data.gov.uk/doc/local-authority/30UN,Area 3 - Parks/Leyland East West,Grounds Maint Cntrctrs Chgs,4657,5x 4201-600 Swing Chain Assembly @ 68.00,22/11/2019,0000451109,340.00,Revenue,WICKSTEED LEISURE LTD,00038661
South Ribble Council,http://statistics.data.gov.uk/doc/local-authority/30UN,Area 3 - Parks/Leyland East West,Grounds Maint Cntrctrs Chgs,4657,10x 2511-010 Ct10 Oilite Bush @ 1.30,22/11/2019,0000451109,13.00,Revenue,WICKSTEED LEISURE LTD,00038661
South Ribble Council,http://statistics.data.gov.uk/doc/local-authority/30UN,Area 3 - Parks/Leyland East West,Grounds Maint Cntrctrs Chgs,4657,1x B610 - Spec Replacement Rope Assembly for 4585- MD4 Swinger,22/11/2019,0000451109,"2,374.00",Revenue,WICKSTEED LEISURE LTD,00038661
South Ribble Council,http://statistics.data.gov.uk/doc/local-authority/30UN,Area 3 - Parks/Leyland East West,Grounds Maint Cntrctrs Chgs,4657,Carriage carriage supp,22/11/2019,0000451109,148.00,Revenue,WICKSTEED LEISURE LTD,00038661
South Ribble Council,http://statistics.data.gov.uk/doc/local-authority/30UN,Area 3 - Parks/Leyland East West,Capital Expenditure,C230,GROUND INVESTIGATION - BENT LANE PR254HS,08/11/2019,0000450625,"3,310.00",Revenue,WORMS EYE LIMITED,132915
South Ribble Council,http://statistics.data.gov.uk/doc/local-authority/30UN,Planning,Professional Fees,4510,Project work in relation to Bee Lane/Pickerings Farm as per NAMES REDACTED,29/11/2019,0000451255,"5,000.00",Revenue,WSP UK Ltd,132833
South Ribble Council,http://statistics.data.gov.uk/doc/local-authority/30UN,Property Services,Rep & Maint Premises,2020,"For Moss Side Depot, New PSTN line, Installation, Router, Call Barring, internet and line rental ",08/11/2019,0000450744,742.53,Revenue,Zen Internet,132851
South Ribble Council,http://statistics.data.gov.uk/doc/local-authority/30UN,Information Services,Peripherals,4247,"12 months Business Broadband (1) for service on TELEPHONE REDACTED, including Call Barring",06/11/2019,0000450753,506.80,Revenue,Zen Internet,132851
